Cogmind - Beta 13 @@@ ROGUE MODE // 2024.05.11 @ 02:44:24 Player: puppuppit Result: Destroyed by Y-72 Warden with Railgun Performance ------------- Evolutions (6) 3000 Regions Visited (31) 6200 Robots Destroyed (781) 3905 Value Destroyed (29031) 29031 Prototype IDs (78) 1560 Alien Tech Used (2) 400 Bonus (19827) 19827 TOTAL SCORE: 63923 Bonus ------- Triggered High Security 1000 High Alert Combat Kills 9928 Follower Combat Kills 3604 Entered Garrisons 1000 Network Hubs Disabled 200 Aligned with FarCom 300 Acquired ECA 300 Met Zhirov 300 Met Warlord at Base 500 MAIN.C Attacked Warlord 500 Warlord Defense Kills 2824 Built Enhanced Grunts 300 A7 Reached Mainframe 300 Met R17 at Cetus 500 Friendly Fire -1729 Cogmind --------- Core Integrity 0/1150 Matter 300/300 Energy 100/100 System Corruption 1% Temperature Cool (9) Movement Hovering (63) Location -3/Proximity Caves Parts ------- > --- POWER (2) -------- (None) > --- PROPULSION (6) --- Combat Gravmag System Improved Gyrokinetic Inverter Combat Linear Gravjet Combat Linear Gravjet Field Propulsion Drive > --- UTILITY (7) ------ Medium Storage Unit Improved Target Analyzer Improved Target Analyzer Improved System Shield > --- WEAPON (4) ------- Field Laser Makeshift Hammer > --- INVENTORY (10) --- Neutrino Core Matter Compressor (250) Encrypted Comm Array Helical Railgun Peak State ------------ > --- POWER ------------ Light Antimatter Reactor Light Quantum Reactor > --- PROPULSION ------- Combat Airjet Combat Gravmag System Combat Gravmag System Improved Gyrokinetic Inverter Improved Linear Gravjet Improved Linear Gravjet > --- UTILITY ---------- Improved Heat Sink Advanced Heat Sink Layered Heavy Armor Plating Improved Hacking Suite Advanced Hacking Suite Advanced Hacking Suite > --- WEAPON ----------- Enhanced Gauss Cannon Heavy Gauss Cannon Precision Rocket Launcher Advanced Datajack > --- INVENTORY -------- Light Antimatter Reactor Matter Compressor Encrypted Comm Array Improved Kinecellerator Transdimensional Reconstructor [Rating: 120] Favorites ----------- Power Micro Nuclear Core Engine Light Ion Engine Power Core Micro Nuclear Core Reactor Light Antimatter Reactor Propulsion Improved Flight Unit Leg Improved Titanium Leg Wheel Wheel Hover Unit Gravmag Array Flight Unit Improved Flight Unit Utility Small Storage Unit Device Advanced Heat Sink Storage Small Storage Unit Processor Improved Target Analyzer Hackware Improved Hacking Suite Protection Layered Heavy Armor Plating Weapon Improved Assault Rifle Energy Gun Precision Beam Rifle Energy Cannon Neutron Cannon Ballistic Gun Improved Assault Rifle Ballistic Cannon Hypervelocity Gauss Cannon Launcher Precision Rocket Launcher Special Weapon RU-N14's Throwing Claymores v3 Impact Weapon Makeshift Hammer Special Melee Weapon Advanced Datajack Build | -11 -10 -10 -9 -9 -9 -8 -8 -8 -8 -8 -8 -8 -8 -7 -7 -6 -6 -6 -6 -6 -5 -5 -5 -5 -4 -4 -4 -4 -4 -4 -3 ------- Run | Yrd Mat Min Mat Min Exi Min Mat Gar Mat Gar Mat Gar Mat Fac Gar Fac Ext Cet Arc Hub Fac Upp Upp Zhi Pro Fac Gar Fac Upp War Pro Slots Evolved 12 | . . . 2 . . . 2 . . . . . . 2 . 2 . . . . 2 . . . . 2 . . . . . Power 1 | . . . . . . . . . . . . . . . . 1 . . . . . . . . . . . . . . . Propulsion 4 | . . . 1 . . . . . . . . . . 1 . 1 . . . . 1 . . . . . . . . . . Utility 5 | . . . 1 . . . . . . . . . . 1 . . . . . . 1 . . . . 2 . . . . . Weapon 2 | . . . . . . . 2 . . . . . . . . . . . . . . . . . . . . . . . . Parts Attached 655 | 12 8 18 72 4 4 11 16 36 1 27 23 5 6 6 50 76 22 14 16 2 69 5 6 2 . 52 18 17 9 39 9 Power 83 | 1 . 2 12 1 . 3 1 1 . 1 3 . . . 4 15 5 2 2 . 7 3 2 . . 6 3 2 2 4 1 Engine 34 | 1 . 2 11 1 . 1 . . . . . . . . 1 7 3 2 1 . . 3 . . . . . . . 1 . Core 44 | . . . 1 . . 2 1 1 . 1 3 . . . 3 8 2 . 1 . 7 . 2 . . 3 2 2 2 2 1 Reactor 5 | . . . . . . . . . . . . . . . . . . . . . . . . . . 3 1 . . 1 . Propulsion 135 | 6 1 6 10 . . . 4 2 1 1 8 . . 2 17 23 . 2 5 1 18 . 1 . . 13 2 4 . 7 1 Treads . | . . . . . . . . . . . . . . . . . . . . . . . . . . . . . . . . Leg 6 | . . . . . . . . . . . 3 . . 1 . . . 2 . . . . . . . . . . . . . Wheel 15 | 6 1 6 2 . . . . . . . . . . . . . . . . . . . . . . . . . . . . Hover 61 | . . . . . . . . . . . . . . . . 14 . . 5 1 18 . 1 . . 13 . 4 . 5 . Flight 53 | . . . 8 . . . 4 2 1 1 5 . . 1 17 9 . . . . . . . . . . 2 . . 2 1 Utility 176 | 2 2 3 6 3 2 2 6 2 . 1 5 . 2 4 12 25 8 5 7 . 19 2 1 2 . 22 5 6 4 16 2 Device 94 | 1 . . . 2 . 1 5 2 . 1 4 . . 2 9 13 5 3 3 . 10 1 . 1 . 15 5 . 2 8 1 Storage 12 | 1 1 . 2 1 2 . . . . . . . 1 . . . 1 . . . . . . . . . . . 2 . 1 Processor 17 | . 1 . 1 . . 1 . . . . . . . . 1 3 . 1 . . 1 1 . . . . . 5 . 2 . Hackware 23 | . . 1 2 . . . 1 . . . . . . 2 . 6 . 1 4 . 1 . 1 1 . 2 . . . 1 . Protection 30 | . . 2 1 . . . . . . . 1 . 1 . 2 3 2 . . . 7 . . . . 5 . 1 . 5 . Artifact . | . . . . . . . . . . . . . . . . . . . . . . . . . . . . . . . . Weapon 261 | 3 5 7 44 . 2 6 5 31 . 24 7 5 4 . 17 13 9 5 2 1 25 . 2 . . 11 8 5 3 12 5 Energy Gun 34 | 2 . . . . . 1 2 4 . 8 1 2 3 . 2 . . . 1 . 1 . . . . . . . 1 4 2 Energy Cannon 7 | . . . 1 . . . . . . . . . . . . . . . 1 . 2 . . . . . . 3 . . . Ballistic Gun 149 | 1 3 5 33 . 2 3 3 26 . 13 6 . . . 15 10 5 4 . 1 7 . . . . . 5 2 2 1 2 Ballistic Cannon 16 | . . . . . . . . . . . . . . . . . . . . . 11 . . . . 3 . . . 2 . Launcher 47 | . 2 2 10 . . 2 . 1 . 3 . 3 1 . . 3 4 1 . . 3 . 2 . . 7 3 . . . . Special Weapon 6 | . . . . . . . . . . . . . . . . . . . . . 1 . . . . . . . . 5 . Impact Weapon 1 | . . . . . . . . . . . . . . . . . . . . . . . . . . . . . . . 1 Slashing Weapon . | . . . . . . . . . . . . . . . . . . . . . . . . . . . . . . . . Piercing Weapon . | . . . . . . . . . . . . . . . . . . . . . . . . . . . . . . . . Special Melee Weapon 1 | . . . . . . . . . . . . . . . . . . . . . . . . . . 1 . . . . . Unidentified Prototypes 20 | . . . 3 . . . 1 . . . . . . . 1 5 1 . 2 . 2 . . 1 . . . . . 4 . Corrupted Parts 3 | . . 1 . . . . . . . . . . . . . . . . . . . 1 . . . . . . . 1 . System Corruption 6 | . . 3 . . . . . . . . . . . . . . . . . . . 2 . . . . . . . 1 . Parts Lost 103 | . . 6 5 . . 2 . 6 . 5 1 . . 2 5 9 2 7 2 1 6 1 . . . 10 13 6 3 3 8 Power 23 | . . 2 3 . . 1 . 1 . 1 . . . . . 2 . 2 1 . 1 1 . . . 1 2 1 . 2 2 Propulsion 20 | . . 1 . . . . . . . . 1 . . 1 2 2 . 1 1 1 1 . . . . 1 2 3 1 1 1 Utility 26 | . . . 1 . . . . . . . . . . . 1 3 1 2 . . 4 . . . . 5 4 . 2 . 3 Weapon 34 | . . 3 1 . . 1 . 5 . 4 . . . 1 2 2 1 2 . . . . . . . 3 5 2 . . 2 Highest Loss Streak 6 | . . 2 2 . . 1 . 2 . 3 1 . . 2 2 3 1 5 2 1 1 1 . . . 5 5 3 4 1 6 To Critical Strikes 2 | . . . . . . . . . . . . . . . . . . 2 . . . . . . . . . . . . . Average Slot Usage (%) 88 | . 96 94 96 91 90 100 98 98 100 96 96 99 100 94 95 80 83 66 85 93 85 69 75 76 76 82 69 89 79 77 71 Engine 3 | . 14 8 9 11 11 4 . . . . . . . . 2 1 9 1 4 6 . 3 9 . . . . . . 2 . Core 5 | . . . . . . 6 9 9 9 8 9 9 9 7 4 8 3 4 2 6 10 . . 11 11 4 2 8 5 4 7 Leg 2 | . . . . . . . . . . . 3 27 27 23 5 . . 2 5 . . . . . . . . . . . . Wheel 2 | . 28 28 3 . . . . . . . . . . . . . . . . . . . . . . . . . . . . Hover 11 | . . . . . . . . . . . . . . . . 14 20 13 19 26 23 23 23 23 23 28 27 23 21 23 25 Flight 10 | . . . 28 33 33 33 27 27 27 27 21 . . 2 24 10 . . . . . . . . . . 3 6 . 1 2 Device 9 | . . . . 4 11 11 15 17 18 18 16 9 9 9 16 10 12 12 7 . 7 5 5 5 5 9 13 19 9 9 2 Storage 5 | . 14 14 11 13 22 21 9 9 9 9 9 9 9 7 7 1 . . . . . . . . . . . . 1 . 2 Processor 3 | . 13 6 2 3 . . 2 . . . . . . . 3 4 . . 2 . . 4 5 2 . . . 12 21 18 10 Hackware 6 | . . . 18 3 . . . . . . . . . 4 . 6 . 5 15 26 18 5 5 8 11 14 2 . . . 5 Protection 2 | . . 7 . . . . . . . . . 9 9 7 1 1 9 4 . . . 5 5 5 5 4 1 1 2 2 4 Energy Gun 3 | . . . . . . . 15 7 9 13 10 3 7 7 2 . . . 1 6 2 . . . . . . . 4 4 4 Ballistic Gun 15 | . 22 27 20 22 13 20 19 27 27 17 20 27 27 22 23 18 23 16 18 13 6 . . . . . 9 8 2 . 3 Ballistic Cannon 2 | . . . . . . . . . . . . . . . . . . . . . 7 17 17 17 17 9 1 . . 1 . Naked Turns . | . . . . . . . . . . . . . . . . . . . . . . . . . . . . . . . . Heaviest Build 93 | 11 18 20 26 15 18 21 22 28 24 24 31 36 36 35 44 39 59 46 47 46 65 64 63 61 61 79 55 58 59 93 66 Greatest Support 82 | 32 20 20 30 21 21 21 24 24 24 24 60 60 60 70 60 52 52 52 50 50 64 63 63 63 63 73 73 62 54 82 68 Greatest Overweight (x) 7 | . . . 7 . . . 1 2 . . 1 . . . 2 1 1 1 1 . 1 3 . . . 1 . 1 1 1 1 Average Overweight (x) . | . . . . . . . . . . . . . . . . . . . . . . . . . . . . . . . . Largest Inventory Capacity 10 | 8 10 10 10 8 8 8 8 8 8 8 8 8 8 8 8 8 5 5 5 5 5 5 5 5 5 5 5 5 5 5 10 Average Capacity 6 | 7 8 10 8 8 8 8 8 8 8 8 8 8 8 8 8 5 5 5 5 5 5 5 5 5 5 5 5 5 5 5 7 Most Carried 10 | 7 10 10 10 8 8 8 8 8 8 8 8 8 8 8 8 8 5 5 5 5 5 5 5 5 5 5 5 5 5 5 5 Average Carried 6 | 1 8 9 8 7 7 8 7 7 8 7 7 8 7 7 7 5 4 4 4 4 4 5 4 4 5 4 4 4 4 4 3 Final Capacity 10 | 8 10 10 8 8 8 8 8 8 8 8 8 8 8 8 8 5 5 5 5 5 5 5 5 5 5 5 5 5 5 5 10 Final Carried 10 | 7 10 10 8 8 8 8 8 8 8 8 8 8 8 8 8 5 5 2 5 5 5 5 5 5 5 5 4 4 5 5 4 Class Distribution -------------------- 12% | Skirmisher 12% | Hacker-Mutant 12% | Scavenger-Sprinter 11% | Mutant 10% | Scavenger-Skirmisher 9% | Hacker-Skirmisher 8% | Scavenger-Gunner 8% | Scavenger-Mutant Dominant Class ---------------- Mutant | -10/Materials Mutant | -10/Mines Hacker-Mutant | -9/Materials Mutant | -9/Mines Mutant | -9/Exiles Mutant | -8/Mines Skirmisher | -8/Materials Commander-Sprinter | -8/Garrison Commander-Sprinter | -8/Materials Scavenger-Sprinter | -8/Garrison Skirmisher | -8/Materials Skirmisher | -8/Garrison Skirmisher | -8/Materials Skirmisher | -7/Factory Scavenger-Sprinter | -7/Garrison Scavenger-Skirmisher | -6/Factory Scavenger-Tank | -6/Extension Commander-Skirmisher | -6/Cetus Scavenger-Skirmisher | -6/Archives Scavenger-Skirmisher | -6/Hub_04(d) Hacker-Skirmisher | -5/Factory Gunner | -5/Upper Caves Scavenger-Gunner | -5/Upper Caves Hacker-Tank | -5/Zhirov Hacker-Tank | -4/Proximity Caves Hacker-Mutant | -4/Factory Scavenger-Skirmisher | -4/Garrison Scavenger-Gunner | -4/Factory Scavenger-Gunner | -4/Upper Caves Scavenger-Mutant | -4/Warlord Scavenger-Mutant | -3/Proximity Caves Resources | -11 -10 -10 -9 -9 -9 -8 -8 -8 -8 -8 -8 -8 -8 -7 -7 -6 -6 -6 -6 -6 -5 -5 -5 -5 -4 -4 -4 -4 -4 -4 -3 ----------- Run | Yrd Mat Min Mat Min Exi Min Mat Gar Mat Gar Mat Gar Mat Fac Gar Fac Ext Cet Arc Hub Fac Upp Upp Zhi Pro Fac Gar Fac Upp War Pro Matter Collected 27469 | 360 703 801 2859 103 37 441 870 1129 . 711 740 258 607 408 2020 3790 1666 475 314 . 3069 758 567 . . 2025 369 340 528 1146 375 Remotely . | . . . . . . . . . . . . . . . . . . . . . . . . . . . . . . . . Salvage Created 31254 | 181 845 1022 4363 87 . 652 1534 1069 . 618 1147 440 570 953 1980 3815 2125 242 281 29 4004 715 364 . . 1351 153 708 425 813 768 Parts 1647 | 17 58 78 314 4 . 47 91 58 . 40 67 25 37 43 83 178 85 13 19 1 165 14 31 . . 57 12 41 10 41 18 Haulers Intercepted 26 | . 2 . 6 . . . 4 . . . 3 . . 2 . 3 2 . . . 2 . . . . 2 . . . . . Recyclers Shooed 42 | 1 1 3 8 . . 1 5 . . . 4 . 2 1 . 8 1 . . . 5 . . . . 2 . . . . . Parts Field Recycled . | . . . . . . . . . . . . . . . . . . . . . . . . . . . . . . . . Retrieved Matter . | . . . . . . . . . . . . . . . . . . . . . . . . . . . . . . . . Parts Self-Destructed 59 | . . . . . . . . . . . . . . . . . . . . . . 14 24 . . . . . 5 . 16 Prevented 7 | . . . . . . . . . . . . . . . . . . . . . . 2 . . . . . . 5 . . Kills | -11 -10 -10 -9 -9 -9 -8 -8 -8 -8 -8 -8 -8 -8 -7 -7 -6 -6 -6 -6 -6 -5 -5 -5 -5 -4 -4 -4 -4 -4 -4 -3 ------- Run | Yrd Mat Min Mat Min Exi Min Mat Gar Mat Gar Mat Gar Mat Fac Gar Fac Ext Cet Arc Hub Fac Upp Upp Zhi Pro Fac Gar Fac Upp War Pro Combat Hostiles Destroyed 472 | . 14 8 55 . . 7 18 22 . 14 23 16 8 7 34 36 39 5 1 . 46 6 15 . . 36 11 10 6 24 11 Guns 243 | . 6 5 31 . . 6 18 21 . 14 15 10 5 7 34 25 14 4 . . 11 . . . . . 2 2 2 5 6 Cannons 62 | . . . . . . . . . . . . . . . . . . . 1 . 17 6 5 . . 13 1 3 2 12 2 AOE 160 | . 8 3 24 . . 1 . 1 . . 8 6 3 . . 11 25 1 . . 18 . 10 . . 23 8 3 . 7 . Classes Destroyed 26 | 3 7 1 . . . 2 . 1 . 3 . 1 . . . 2 2 . . . . 1 . . . . . . . 3 . Worker 103 | 2 7 6 32 4 . 3 4 . . . 2 . . 4 . 19 1 . . . 11 . . . . 6 . 2 . . . Builder 53 | . 2 3 17 1 . 2 2 . . . 2 . 1 . . 7 5 . . . 9 . . . . 1 . 1 . . . Tunneler 25 | 3 1 4 3 . . 6 1 . . . . . . . . 1 2 . . . 1 . . . . 1 . 2 . . . Hauler 26 | . 2 . 6 . . . 4 . . . 3 . . 2 . 3 2 . . . 2 . . . . 2 . . . . . Recycler 73 | 1 2 8 16 . . 3 4 . . . 3 . 4 5 . 10 2 . . . 13 . . . . 2 . . . . . Minesweeper 2 | . . . . . . . . . . . . . . . . . . . . . . 2 . . . . . . . . . Mechanic 9 | . 1 . 1 . . . . . . . . . . . . 2 2 . . . 3 . . . . . . . . . . Operator 19 | . 1 . 2 . . . 2 . . . 2 . . . . 1 . . 9 . . . . . . 1 . 1 . . . Drone 1 | . . . . . . . . . . . . . . . . 1 . . . . . . . . . . . . . . . Watcher 26 | . 3 . 4 . . . 4 . . . 2 . 1 1 . 2 . 2 . 1 4 . . . . 1 . 1 . . . Swarmer 108 | . 3 3 7 . . . 3 1 . . 6 4 3 . 23 3 1 . . . 5 . 10 . . 19 9 2 4 . 2 Cutter 2 | . . . . . . . . . . . . 2 . . . . . . . . . . . . . . . . . . . Saboteur 7 | . . . . . . . . . . . . . . . . . 1 . . . 1 . . . . . . . . 5 . Grunt 200 | . 11 3 38 . . 5 9 12 . 4 10 8 . 4 4 17 18 2 . . 20 4 4 . . 7 1 5 . 8 6 Brawler 8 | . . . . . . 1 . . . . . 2 . . . . 2 . . . 1 . . . . . . . . 2 . Duelist 8 | . . . . . . . . . . . . . . . . 2 1 1 . . . . . . . . . . . 2 2 Protector 6 | . . . . . . . . . . 1 . . . . . 2 . . . . . . . . . . . . . 3 . Sentry 68 | . . 2 10 . . . 5 9 . 3 6 . 5 2 4 3 7 . 1 . 6 1 . . . 2 . 1 . . 1 Demolisher 2 | . . . . . . . . . . 1 . . . . . . 1 . . . . . . . . . . . . . . Specialist 5 | . . . . . . . . 1 . . . . . . . . 4 . . . . . . . . . . . . . . Hunter 24 | . . . . . . 1 1 . . 3 1 . . . 1 6 1 1 . . 1 . . . . 6 . . 2 . . Programmer 29 | . . . . . . . . . . 2 . . . 1 2 2 2 . . . 12 1 1 . . 2 . 2 . 2 . Behemoth 2 | . . . . . . . . . . . . . . . . . 1 . . . . . . . . . 1 . . . . Cetus Guard 1 | . . . . . . . . . . . . . . . . . . 1 . . . . . . . . . . . . . Striker 1 | . . . . . . . . . . . . . . . . . . . . . . . . . . . . . . 1 . Executioner 1 | . . . . . . . . . . . . . . . . . . . . . . . . . . . . . . 1 . Tinkerer 1 | . . . . . . . . . . . . . . . . . . . . . . . . . . . . . . 1 . Surgeon 1 | . . . . . . . . . . . . . . . . . . . . . . . . . . 1 . . . . . Wasp 1 | . . . . . . . . . . . . . . . . . . . . . . . . . . 1 . . . . . Best Kill Streak 19 | 3 8 4 11 2 . 7 7 3 . 2 12 4 5 5 8 11 19 3 6 1 18 3 5 . . 12 6 6 4 6 6 Combat Bots Only 18 | . 3 4 7 . . 3 4 3 . 2 5 4 4 5 8 7 18 3 1 . 11 3 5 . . 9 6 4 4 6 6 Max Kills in Single Turn 10 | 1 3 2 4 1 . 3 2 1 . 1 4 2 3 1 2 3 10 3 1 1 5 1 5 . . 4 3 5 1 2 1 Gunslinging 1 | . . . . . . . 1 . . . . 1 . . 1 . 1 . . . . . . . . . . . . . . Exploded 6 | . 3 1 3 . . 1 . 1 . . 2 2 3 . . 2 6 1 . . 3 . 5 . . 4 3 3 . 2 . Melee . | . . . . . . . . . . . . . . . . . . . . . . . . . . . . . . . . Uniques/NPCs Destroyed . | . . . . . . . . . . . . . . . . . . . . . . . . . . . . . . . . Combat | -11 -10 -10 -9 -9 -9 -8 -8 -8 -8 -8 -8 -8 -8 -7 -7 -6 -6 -6 -6 -6 -5 -5 -5 -5 -4 -4 -4 -4 -4 -4 -3 -------- Run | Yrd Mat Min Mat Min Exi Min Mat Gar Mat Gar Mat Gar Mat Fac Gar Fac Ext Cet Arc Hub Fac Upp Upp Zhi Pro Fac Gar Fac Upp War Pro Hostile Shots Fired 2331 | . 32 69 176 . . 18 57 96 . 67 60 30 9 72 239 170 221 45 5 . 223 30 24 . 6 221 100 58 34 152 117 Missed 935 | . 11 28 68 . . 6 24 47 . 33 24 7 3 30 94 69 112 16 2 . 85 13 7 . 3 77 39 18 13 66 40 Damage Taken 24351 | . 261 609 1431 . . 191 461 956 . 614 505 409 82 372 1762 1641 1434 546 183 102 2799 335 313 . 70 3074 1184 826 352 2262 1577 Core 3367 | . 36 140 217 . . 26 70 121 . 103 112 98 . 42 444 233 153 . . . 387 . 43 . . 337 257 160 17 237 134 Absorbed by Shields 689 | . . . . . . . . 22 . . . . . . . . 313 259 . . 62 . . . . . 19 . . 14 . Ignored by Resistances 58 | . . . . . . . . . . . . . . . 48 . . . . . . . . . . . . . . 10 . Regen/Repaired (Parts) 3555 | . 26 . 341 . . . . . . . . . . . . 60 . . . . 1164 . . . . 1675 . . . 289 . Core Remaining (%) 45 | 100 . 29 . . . 39 . . . . . . 8 . 30 . . . . 54 . . . . 57 . . . . . . Volleys Fired 1842 | 28 66 79 286 8 . 49 82 86 . 61 57 29 18 38 141 171 79 22 39 3 153 34 16 . . 101 41 32 13 74 36 Largest 4 | 1 2 2 2 2 . 2 4 4 . 4 4 4 4 4 4 4 4 4 4 3 4 3 3 . . 3 4 3 4 3 3 Hottest 258 | 20 50 50 59 46 . 88 172 176 . 200 174 130 130 130 130 103 126 111 166 201 258 179 179 . . 179 92 198 250 225 176 Shots Fired 4454 | 28 114 158 569 16 . 94 267 241 . 156 201 98 68 151 412 416 282 65 70 7 390 65 41 . . 200 83 47 33 117 65 Gun 3609 | 28 104 151 544 16 . 91 267 238 . 146 182 88 67 151 412 402 263 52 36 4 137 . . . . . 69 10 18 72 61 Cannon 656 | . . . . . . . . . . . . . . . . . . . 34 3 230 65 39 . . 181 11 37 15 37 4 Launcher 179 | . 10 7 25 . . 3 . 3 . 10 19 10 1 . . 14 19 13 . . 21 . 2 . . 19 3 . . . . Special 10 | . . . . . . . . . . . . . . . . . . . . . 2 . . . . . . . . 8 . Kinetic 3626 | 28 104 151 544 16 . 89 180 184 . 82 121 75 54 113 376 402 263 52 36 1 296 65 39 . . 181 80 10 10 38 36 Thermal 589 | . . . . . . 2 87 54 . 64 61 13 13 38 36 . . . 34 6 73 . . . . . . . 8 71 29 Explosive 187 | . 10 7 25 . . 3 . 3 . 10 19 10 1 . . 14 19 13 . . 21 . 2 . . 19 3 . . 8 . Electromagnetic 52 | . . . . . . . . . . . . . . . . . . . . . . . . . . . . 37 15 . . Robot Hit Streak 27 | 4 11 10 14 7 . 9 9 14 . 7 24 16 13 23 26 27 11 10 5 1 18 15 8 . . 11 12 13 6 9 9 Robot Miss Streak 10 | 3 6 3 5 2 . 5 7 9 . 8 5 3 2 3 10 6 5 4 8 2 6 3 4 . . 5 2 3 3 4 2 Penetration Max 2 | . . . . . . . 1 . . . . . . . . 1 . . . . 2 . . . . 1 1 . . 1 1 Secondary Targets 27 | . . . 4 . . . 2 3 . 2 . 2 . 2 5 3 2 . . . . . . . . . . . . 2 . Max Gunslinging Chain 1 | . . . 1 . . . 1 1 . 1 . 1 . 1 1 1 1 . . . . . . . . . . . . 1 . Autonomous 18 | . . . . . . . . . . . . . . . 18 . . . . . . . . . . . . . . . . Shots Hit Robots 2623 | 17 67 96 357 10 . 56 137 115 . 78 117 56 44 99 273 246 169 39 40 1 198 43 20 . . 110 60 33 19 78 45 Core Hits 1586 | 7 50 42 179 5 . 31 56 49 . 33 70 34 22 34 110 170 153 52 30 1 186 18 17 . . 105 19 24 9 60 20 Critical Kills 36 | . . . 1 . . . 1 1 . . . . 1 . 1 . . . . . 18 5 3 . . 3 . . . . 2 Critical Parts Destroyed 68 | . 1 1 2 . . . . 2 . 1 1 . . . 1 1 . . . . 35 7 4 . . 11 1 . . . . Critical Strikes 176 | . 1 1 3 . . . 6 4 . 2 5 1 2 3 6 1 . . . . 61 20 9 . . 28 1 . 3 9 10 Burn 31 | . . . . . . . 5 1 . 1 3 1 1 3 3 . . . . . 1 . . . . . . . . 4 8 Destroy 108 | . 1 1 3 . . . 1 3 . 1 2 . 1 . 3 1 . . . . 54 13 7 . . 14 1 . . . 2 Blast 32 | . . . . . . . . . . . . . . . . . . . . . 6 7 2 . . 14 . . . 3 . Corrupt 3 | . . . . . . . . . . . . . . . . . . . . . . . . . . . . . 3 . . Sever 2 | . . . . . . . . . . . . . . . . . . . . . . . . . . . . . . 2 . Melee Attacks 8 | . . . . . . . . . . . . . . . . . . . . . . . . . . 4 . . . . 4 Impact 4 | . . . . . . . . . . . . . . . . . . . . . . . . . . . . . . . 4 Slashing . | . . . . . . . . . . . . . . . . . . . . . . . . . . . . . . . . Piercing . | . . . . . . . . . . . . . . . . . . . . . . . . . . . . . . . . Sneak Attacks 4 | . . . . . . . . . . . . . . . . . . . . . . . . . . 4 . . . . . Combat Hostiles . | . . . . . . . . . . . . . . . . . . . . . . . . . . . . . . . . Follow-up Attacks . | . . . . . . . . . . . . . . . . . . . . . . . . . . . . . . . . Damage Inflicted 84619 | 220 1604 1642 7019 160 . 1170 2548 2153 . 1237 3315 1523 1008 1655 4555 9607 8273 2136 1464 23 10962 1074 1124 . . 8297 1844 1796 574 6307 1329 Guns 41134 | 220 787 1196 5145 160 . 822 2548 2153 . 1157 1705 814 701 1655 4555 7387 3642 665 449 23 2308 . . . . . 830 150 139 879 1044 Cannons 12167 | . . . . . . . . . . . . . . . . . . . 824 . 3153 1074 437 . . 3042 235 729 435 2026 212 Explosions 30844 | . 817 446 1874 . . 348 . . . 80 1610 709 307 . . 2220 4631 1471 191 . 5465 . 687 . . 5255 779 895 . 3059 . Melee 73 | . . . . . . . . . . . . . . . . . . . . . . . . . . . . . . . 73 Ramming 58 | . . . . . . . . . . . . . . . . . . . . . 36 . . . . . . 22 . . . Kinetic 44918 | 220 787 1196 5145 160 . 822 1734 1723 . 708 1096 710 543 1122 3878 7387 3642 665 449 . 4203 1074 437 . . 3042 1065 150 57 2079 824 Thermal 9616 | . . . . . . . 814 430 . 449 759 104 158 533 677 . . . 1015 23 1311 . . . . 1108 . 895 82 826 432 Explosive 27913 | . 817 446 1874 . . 348 . . . 80 1460 709 307 . . 2220 4631 1471 . . 4878 . 687 . . 4147 779 . . 3059 . Electromagnetic 1698 | . . . . . . . . . . . . . . . . . . . . . 534 . . . . . . 729 435 . . Impact 73 | . . . . . . . . . . . . . . . . . . . . . . . . . . . . . . . 73 Slashing 343 | . . . . . . . . . . . . . . . . . . . . . . . . . . . . . . 343 . Piercing . | . . . . . . . . . . . . . . . . . . . . . . . . . . . . . . . . Highest Corruption 14 | . . 3 4 4 4 4 1 . . . 1 . . 1 2 3 3 3 3 . 12 14 14 14 14 2 2 7 7 7 1 Average Corruption 4 | . . 3 4 4 4 4 1 . . . 1 . . 1 1 2 3 3 2 . 7 12 14 14 14 1 2 5 7 1 1 Corruption Purged 5 | . . . . . . . 1 . . . 1 . . . . . . . 3 . . . . . . . . . . . . Corruption Blocked 8 | . . . . . . . . . . . . . . . . . . . . . . . . . . . . . . 8 . Effects 250 | . . . 19 9 4 16 1 . . . . . . 4 17 12 17 12 4 . 50 22 22 4 3 . 7 11 12 2 2 Message Errors 63 | . . . 5 1 2 2 . . . . . . . 2 7 2 5 3 1 . 5 9 6 2 2 . 1 4 4 . . Matter Fused 61 | . . . 2 3 1 3 1 . . . . . . 1 2 2 6 1 . . 17 3 8 . . . 5 2 2 1 1 Heat Flow Errors 28 | . . . 2 1 . 1 . . . . . . . . 1 2 2 2 . . 7 4 1 . 1 . 1 1 2 . . Energy Discharges 24 | . . . 3 1 . 1 . . . . . . . 1 1 . 1 3 . . 7 1 2 . . . . 2 . 1 . Parts Rejected 6 | . . . . . . 1 . . . . . . . . . . 1 . . . 3 . . . . . . . . . 1 Parts Fused 2 | . . . 1 . . . . . . . . . . . . . . . . . . 1 . . . . . . . . . Data Loss (minor) 30 | . . . 4 1 1 3 . . . . . . . . 3 3 . 1 1 . 5 2 2 2 . . . . 2 . . Data Loss (major) 7 | . . . . 1 . . . . . . . . . . . . 1 1 . . 2 1 . . . . . . 1 . . Misfires 9 | . . . . . . . . . . . . . . . 1 2 1 1 . . 1 1 1 . . . . 1 . . . Alerts 6 | . . . 1 1 . 1 . . . . . . . . 1 . . . . . . . . . . . . 1 1 . . Misdirections 3 | . . . . . . . . . . . . . . . . . . . . . 3 . . . . . . . . . . Weapon Failures 11 | . . . 1 . . 4 . . . . . . . . 1 1 . . 2 . . . 2 . . . . . . . . Overload Shots . | . . . . . . . . . . . . . . . . . . . . . . . . . . . . . . . . Overflow Damage 1929 | . 49 1 117 . . 4 . . . . 9 5 23 . . 53 68 28 179 . 185 220 29 . . 512 97 128 . 222 . Projectiles 777 | . . . . . . . . . . . . . . . . . . . 131 . 118 220 . . . 56 . 52 . 200 . Explosions 1152 | . 49 1 117 . . 4 . . . . 9 5 23 . . 53 68 28 48 . 67 . 29 . . 456 97 76 . 22 . Melee . | . . . . . . . . . . . . . . . . . . . . . . . . . . . . . . . . Knockbacks 66 | . . . . . . . . . . . . . . . . . . . . . 20 6 5 . . 22 4 . . 7 2 Impact 1 | . . . . . . . . . . . . . . . . . . . . . . . . . . . . . . . 1 Kinetic 61 | . . . . . . . . . . . . . . . . . . . . . 19 6 5 . . 22 3 . . 5 1 Secondary 4 | . . . . . . . . . . . . . . . . . . . . . 1 . . . . . 1 . . 2 . Self-Inflicted Damage 770 | . 23 36 153 . . . . 78 . 17 12 48 . . . . . 13 110 104 18 . . . . 115 32 11 . . . Shots 20 | . 2 1 3 . . . . 2 . 1 1 2 . . . . . 1 2 1 . . . . . 3 1 . . . . Rammed 3 | . . . . . . . . . . . . . . . . . . . . . 1 . . . . . . 2 . . . Targets Rammed 3 | . . . . . . . . . . . . . . . . . . . . . 1 . . . . . . 2 . . . Kicked . | . . . . . . . . . . . . . . . . . . . . . . . . . . . . . . . . Crushed . | . . . . . . . . . . . . . . . . . . . . . . . . . . . . . . . . Highest Temperature 541 | . 5 20 291 266 . 213 326 338 . 165 161 76 39 54 525 378 469 182 20 144 353 322 189 . 125 368 341 162 278 541 461 Average Temperature 77 | . 2 5 52 126 . 55 79 71 . 52 32 27 14 9 93 93 67 51 11 66 75 128 89 . 72 62 154 57 80 135 141 Received Heat Transfer 6644 | . 132 234 516 . . 63 261 684 . 45 153 144 27 111 231 411 322 35 9 . 658 126 96 . 9 270 849 72 9 792 385 Effects 41 | . . . . . . . 2 . . . . . . . 5 4 5 . . . . 2 . . . 2 . . . 10 11 Shutdowns 5 | . . . . . . . . . . . . . . . . 1 1 . . . . . . . . . . . . 2 1 Energy Bleed 9 | . . . . . . . 2 . . . . . . . . 1 . . . . . 1 . . . . . . . 3 2 Interference 10 | . . . . . . . . . . . . . . . . 2 . . . . . 1 . . . . . . . 3 4 Matter Decay 4 | . . . . . . . . . . . . . . . . . . . . . . . . . . 1 . . . 1 2 Short Circuit 3 | . . . . . . . . . . . . . . . . . . . . . . . . . . 1 . . . 1 1 Damage (minor) 1 | . . . . . . . . . . . . . . . . . . . . . . . . . . . . . . . 1 Damage (major) 8 | . . . . . . . . . . . . . . . 4 . 4 . . . . . . . . . . . . . . Damage (core) 1 | . . . . . . . . . . . . . . . 1 . . . . . . . . . . . . . . . . Siege Activations . | . . . . . . . . . . . . . . . . . . . . . . . . . . . . . . . . Robots Corrupted 4 | . . . . . . . . . . . . . . . . . . . . . . . . . . . . 2 2 . . Combat Hostiles 4 | . . . . . . . . . . . . . . . . . . . . . . . . . . . . 2 2 . . Parts Fried 15 | . . . . . . . . . . . . . . . . . 1 1 . . 5 . . . . . . 3 5 . . Impact Corruptions 1 | . . . . . . . . . . . . . . . . . . . . . . . . . . . . . . 1 . Robots Melted 3 | . . . . . . . . . . . . . . . . . . . . . . . . . . . . . . . 3 Combat Hostiles 3 | . . . . . . . . . . . . . . . . . . . . . . . . . . . . . . . 3 Parts Melted 27 | . . . . . . . 1 . . 4 4 . . 4 2 . . . 1 . 1 . . . . 2 . . 1 1 6 Heat Transferred 15957 | . . . . . . . 1850 999 . 1207 1728 276 407 1332 1262 . . . 150 37 1271 . . . . 700 . 650 111 2231 1746 Parts Sabotaged 1 | . . . . . . . . . . . . . . . . . . . . . . . . . . . . . . . 1 Parts Stolen . | . . . . . . . . . . . . . . . . . . . . . . . . . . . . . . . . Parts Stripped . | . . . . . . . . . . . . . . . . . . . . . . . . . . . . . . . . Power Chain Reactions 4 | . . . . . . . . . . . . . . . . . . . 2 . 2 . . . . . . . . . . Alert | -11 -10 -10 -9 -9 -9 -8 -8 -8 -8 -8 -8 -8 -8 -7 -7 -6 -6 -6 -6 -6 -5 -5 -5 -5 -4 -4 -4 -4 -4 -4 -3 ------- Run | Yrd Mat Min Mat Min Exi Min Mat Gar Mat Gar Mat Gar Mat Fac Gar Fac Ext Cet Arc Hub Fac Upp Upp Zhi Pro Fac Gar Fac Upp War Pro Peak Influence 2519 | 30 479 397 1864 736 . 248 502 1773 863 1360 1108 1192 889 487 2072 2253 2519 1972 1057 654 1953 . . . . 1613 1600 1595 . . . Initial 1410 | . 19 173 53 726 . . 96 238 863 534 663 651 581 364 298 1087 1103 1410 788 369 305 . . . . . 1116 840 . . . Average 895 | 12 294 242 813 694 . 150 202 1078 857 1018 773 934 759 379 1171 1469 1612 1681 992 343 814 . . . . 658 1478 1229 . . . Maximum Alert Level 5 | . 2 1 5 3 . 1 2 5 3 4 4 4 3 2 5 5 5 5 3 2 5 . . . . 5 5 4 . . . Low Security (%) 11 | 100 24 30 9 . . 70 63 . . . . . . . . . . . . 38 23 . . . . 10 . . . . . Level 1 16 | . 45 69 21 . . 29 26 10 . . 6 . . 53 14 . . . . 17 17 . . . . 24 . . . . . Level 2 12 | . 29 . 19 56 . . 10 15 . 13 35 16 23 46 1 . . . . 44 3 . . . . 29 . . . . . Level 3 22 | . . . 18 43 . . . 22 100 45 57 70 76 . 35 13 . . 100 . 27 . . . . 18 . 45 . . . Level 4 22 | . . . 18 . . . . 32 . 41 . 13 . . 20 45 66 44 . . 11 . . . . 17 97 54 . . . Level 5 12 | . . . 12 . . . . 18 . . . . . . 27 41 16 55 . . 15 . . . . . 2 . . . . High Security 1 | . . . . . . . . . . . . . . . . . 17 . . . 1 . . . . . . . . . . Max Security . | . . . . . . . . . . . . . . . . . . . . . . . . . . . . . . . . Sterilizations 1 | . . . 1 . . . . . . . . . . . . . . . . . . . . . . . . . . . . Squads Dispatched 111 | . 3 . 13 . . 2 4 . . . 6 . . 2 . 22 8 . . 2 19 . . . . 23 . 6 . . 1 Investigation 27 | . 2 . 9 . . . 4 . . . 2 . . . . . . . . . 3 . . . . 6 . 1 . . . Extermination 13 | . . . . . . . . . . . . . . 1 . 3 . . . . 5 . . . . 3 . 1 . . . Reinforcement 40 | . 1 . 3 . . 2 . . . . 1 . . . . 13 2 . . 1 8 . . . . 9 . . . . . Assault 21 | . . . 1 . . . . . . . . . . . . 6 6 . . 1 3 . . . . 2 . 1 . . 1 Garrison 10 | . . . . . . . . . . . 3 . . 1 . . . . . . . . . . . 3 . 3 . . . Intercept . | . . . . . . . . . . . . . . . . . . . . . . . . . . . . . . . . Searches Triggered . | . . . . . . . . . . . . . . . . . . . . . . . . . . . . . . . . Construction Impeded 14 | . . . 2 . . 2 . . . . . . . . . 2 1 . . . 4 . . . . 3 . . . . . Haulers Reinforced 7 | . . . . . . . . . . . . . . . . 3 . . . 1 2 . . . . 1 . . . . . Active Scanning Responses . | . . . . . . . . . . . . . . . . . . . . . . . . . . . . . . . . Cargo Convoy Interrupts 1 | . . . . . . . . . . . . . . . . 1 . . . . . . . . . . . . . . . Stealth | -11 -10 -10 -9 -9 -9 -8 -8 -8 -8 -8 -8 -8 -8 -7 -7 -6 -6 -6 -6 -6 -5 -5 -5 -5 -4 -4 -4 -4 -4 -4 -3 --------- Run | Yrd Mat Min Mat Min Exi Min Mat Gar Mat Gar Mat Gar Mat Fac Gar Fac Ext Cet Arc Hub Fac Upp Upp Zhi Pro Fac Gar Fac Upp War Pro Distress Signals 30 | . 1 1 2 . . . 6 1 . . 2 . 2 . . 1 . 2 . . 4 . . . . 7 . . . 1 . Communications Jammed . | . . . . . . . . . . . . . . . . . . . . . . . . . . . . . . . . Distress Signals . | . . . . . . . . . . . . . . . . . . . . . . . . . . . . . . . . Times Spotted 921 | . 22 12 70 1 . 7 32 38 1 23 28 16 10 8 48 71 71 20 26 2 73 6 15 . 3 84 27 18 8 155 26 Peak Tracking Total 23 | . 4 5 6 1 . 3 5 5 1 5 5 4 5 4 9 8 17 5 1 1 10 3 5 . 8 10 7 9 4 23 7 Tactical Retreats 70 | . . 1 3 . . . 3 1 . 1 1 . 3 . 11 11 2 . . . 8 . 1 . . 3 7 1 1 8 4 Traps | -11 -10 -10 -9 -9 -9 -8 -8 -8 -8 -8 -8 -8 -8 -7 -7 -6 -6 -6 -6 -6 -5 -5 -5 -5 -4 -4 -4 -4 -4 -4 -3 ------- Run | Yrd Mat Min Mat Min Exi Min Mat Gar Mat Gar Mat Gar Mat Fac Gar Fac Ext Cet Arc Hub Fac Upp Upp Zhi Pro Fac Gar Fac Upp War Pro Traps Triggered 41 | . 1 . 1 . . . . 10 . 9 . . . 1 2 6 1 . . . 4 . . . . . 5 1 . . . Indirectly . | . . . . . . . . . . . . . . . . . . . . . . . . . . . . . . . . Trap Hack Attempts 23 | . . . . . . . . . . . . . . . . . . . . . . . . . . 23 . . . . . Triggered . | . . . . . . . . . . . . . . . . . . . . . . . . . . . . . . . . Disarmed 10 | . . . . . . . . . . . . . 4 . . . . . . 6 . . . . . . . . . . . Reprogrammed 37 | . . . 6 . . . 8 . . . . . . . . . . . . 6 11 . . . . 6 . . . . . Reused 9 | . . . . . . . 2 . . . . . . . . . . . . . 3 . . . . 3 . . . 1 . Traps Extracted . | . . . . . . . . . . . . . . . . . . . . . . . . . . . . . . . . Installed 9 | . . . . . . . . . . . . . . . . . . . . . . 7 . . . . . . . 2 . Triggered 17 | . . . . . . . 2 . . . . . . . . 1 . . . . 3 2 . . . 3 . . . 6 . Most Traps Carried 2 | . . . . 2 2 . . . . . . . . . . . . . . . . . . . . . . . . . . Time Bombs Activated 2 | . . . . . . . . . . . . . . . . . . . . . . . . . . . . . . 2 . Exploded 2 | . . . . . . . . . . . . . . . . . . . . . . . . . . . . . . 2 . Machines | -11 -10 -10 -9 -9 -9 -8 -8 -8 -8 -8 -8 -8 -8 -7 -7 -6 -6 -6 -6 -6 -5 -5 -5 -5 -4 -4 -4 -4 -4 -4 -3 ---------- Run | Yrd Mat Min Mat Min Exi Min Mat Gar Mat Gar Mat Gar Mat Fac Gar Fac Ext Cet Arc Hub Fac Upp Upp Zhi Pro Fac Gar Fac Upp War Pro Machines Disabled 151 | . 1 1 8 . . . . 16 . 10 4 2 . . 10 13 1 . 6 10 27 . . . . 18 2 21 . . 1 Max in Single Turn 17 | . 1 1 2 . . . . 4 . 2 2 1 . . 2 5 . . 1 7 8 . . . . 7 1 17 . . 1 Garrison Access 1 | . . . . . . . . . . . . . . . . . . . . 1 . . . . . . . . . . . Garrison Relay 19 | . . . . . . . . 7 . 5 . 1 . . 5 . . . . . . . . . . . 1 . . . . Phase Generator 2 | . . . . . . . . 1 . . . . . . 1 . . . . . . . . . . . . . . . . Network Hub 1 | . . . . . . . . . . . . . . . . . . . . 1 . . . . . . . . . . . Machines Repaired . | . . . . . . . . . . . . . . . . . . . . . . . . . . . . . . . . Machines Dismantled . | . . . . . . . . . . . . . . . . . . . . . . . . . . . . . . . . Machines Sabotaged . | . . . . . . . . . . . . . . . . . . . . . . . . . . . . . . . . Overloaded Fab Kills . | . . . . . . . . . . . . . . . . . . . . . . . . . . . . . . . . Hacking | -11 -10 -10 -9 -9 -9 -8 -8 -8 -8 -8 -8 -8 -8 -7 -7 -6 -6 -6 -6 -6 -5 -5 -5 -5 -4 -4 -4 -4 -4 -4 -3 --------- Run | Yrd Mat Min Mat Min Exi Min Mat Gar Mat Gar Mat Gar Mat Fac Gar Fac Ext Cet Arc Hub Fac Upp Upp Zhi Pro Fac Gar Fac Upp War Pro Machines Accessed 161 | . 8 2 15 . 5 . 14 4 2 3 8 1 7 6 2 13 3 3 . 8 21 . 1 7 . 17 . 4 . 7 . Terminals 86 | . 7 . 11 . . . 11 4 1 3 4 1 5 . 2 4 3 3 . 7 11 . . . . 8 . 1 . . . Fabricators 14 | . . . . . . . . . . . . . . 1 . 4 . . . . 2 . . . . 5 . 2 . . . Repair Stations 14 | . 1 . 2 . . . . . . . 1 . . 1 . 3 . . . . 4 . . . . 1 . 1 . . . Recycling Units 2 | . . . . . . . . . . . . . . 1 . 1 . . . . . . . . . . . . . . . Scanalyzers 15 | . . . 2 . . . 2 . . . 2 . 2 2 . 1 . . . . 3 . . . . 1 . . . . . Garrison Access 8 | . . . . . . . 1 . 1 . 1 . . 1 . . . . . 1 1 . . . . 2 . . . . . Total Hacks 623 | . 26 2 90 . 50 . 44 4 6 7 23 1 16 11 4 33 5 8 . 32 127 . 1 46 . 63 . 9 . 15 . Successful 405 | . 13 2 55 . 50 . 23 3 1 2 11 1 12 3 2 16 2 5 . 13 85 . 1 46 . 42 . 2 . 15 . Failed 216 | . 12 . 35 . . . 21 1 5 5 12 . 4 8 2 17 3 3 . 19 41 . . . . 21 . 7 . . . Catastrophic 47 | . 4 . 6 . . . 7 1 1 1 3 . 2 . 1 3 . . . 7 7 . . . . 3 . 1 . . . Database Lockouts 2 | . 1 . . . . . . . . . . . . . . . . . . . 1 . . . . . . . . . . Manual 126 | . 13 . 15 . 1 . 18 . 4 . 11 . 2 . . 1 . 1 1 4 29 . . . . 25 . . . 1 . Terminals 289 | . 24 . 50 . . . 36 4 4 7 16 1 8 . 4 9 5 8 . 30 51 . . . . 29 . 3 . . . Fabricators 32 | . . . . . . . . . . . . . . 2 . 8 . . . . 4 . . . . 13 . 5 . . . Repair Stations 87 | . 2 . 22 . . . . . . . 2 . . 2 . 8 . . . . 44 . . . . 6 . 1 . . . Recycling Units 5 | . . . . . . . . . . . . . . 2 . 3 . . . . . . . . . . . . . . . Scanalyzers 84 | . . . 18 . . . 7 . . . 4 . 8 3 . 5 . . . . 27 . . . . 12 . . . . . Garrison Access 12 | . . . . . . . 1 . 2 . 1 . . 2 . . . . . 2 1 . . . . 3 . . . . . Terminal Hacks 235 | . 11 2 22 . 50 . 16 3 . 2 6 1 4 . 2 4 2 5 . 12 22 . 1 46 . 9 . . . 15 . Record 103 | . 2 . 5 . 49 . . . . . . . . . . . . 4 . . . . . 34 . . . . . 9 . Part Schematic 5 | . . . . . . . . . . . . . . . . . . . . 1 . . . 4 . . . . . . . Robot Schematic 2 | . . . 1 . . . . . . . . . . . . . . . . 1 . . . . . . . . . . . Robot Analysis 16 | . 4 . 2 . . . 1 . . . . . . . . . . . . 1 4 . . 4 . . . . . . . Prototype ID Bank 20 | . . . 5 . . . 2 . . . 1 . . . . . . . . . 1 . . 4 . 1 . . . 6 . Open Door 7 | . . 2 . . . . . 1 . . . . . . . 1 1 1 . . . . 1 . . . . . . . . Open DSF 1 | . . . . . . . . . . . . . . . . . . . . . 1 . . . . . . . . . . Branch Access Points 6 | . 1 . 2 . . . . . . . . . . . . . . . . 1 1 . . . . 1 . . . . . Emergency Access Points 3 | . . . . . . . . 1 . 1 . . . . 1 . . . . . . . . . . . . . . . . Terminal Index 11 | . 1 . 1 . . . 1 . . . 1 . 1 . . 2 . . . 1 1 . . . . 2 . . . . . Alert Level 5 | . . . 4 . . . . . . . . . . . . . . . . . 1 . . . . . . . . . . Unreport Threat 12 | . . . . . . . 2 . . . 3 . . . . 1 1 . . 2 2 . . . . 1 . . . . . Disarm Traps 3 | . . . . . . . 1 . . . . . 1 . . . . . . 1 . . . . . . . . . . . Reprogram Traps 7 | . . . 1 . . . 2 . . . . . . . . . . . . 1 3 . . . . . . . . . . Investigation Status 1 | . . . . . . . . . . . . . . . . . . . . . 1 . . . . . . . . . . Recall Investigation 1 | . . . . . . . . . . . . . . . . . . . . . . . . . . 1 . . . . . Recall Extermination 1 | . . . . . . . . . . . . . . . . . . . . . 1 . . . . . . . . . . Recall Reinforcements 3 | . . . . . . . . . . . . . . . . . . . . . 1 . . . . 2 . . . . . Recall Assault 1 | . . . . . . . . . . . . . . . . . . . . . 1 . . . . . . . . . . Registered Components 1 | . . . . . . . . . . . . . . . . . . . . 1 . . . . . . . . . . . Zone Layout 21 | . 3 . 1 . . . 7 . . . 1 . 2 . . . . . . 2 4 . . . . 1 . . . . . Garrison Registry 1 | . . . . . . . . . . . . . . . 1 . . . . . . . . . . . . . . . . Patrol Navigation 1 | . . . . . . . . . . . . 1 . . . . . . . . . . . . . . . . . . . Security Stations 2 | . . . . . . . . 1 . 1 . . . . . . . . . . . . . . . . . . . . . Derelict Proto ID Bank 1 | . . . . . 1 . . . . . . . . . . . . . . . . . . . . . . . . . . Fabricator Hacks 25 | . . . . . . . . . . . . . . 2 . 4 . . . . 4 . . . . 13 . 2 . . . Network Status 5 | . . . . . . . . . . . . . . . . . . . . . 1 . . . . 3 . 1 . . . Load Schematic 10 | . . . . . . . . . . . . . . 1 . 3 . . . . 1 . . . . 5 . . . . . Build 10 | . . . . . . . . . . . . . . 1 . 1 . . . . 2 . . . . 5 . 1 . . . Repair Station Hacks 66 | . 2 . 17 . . . . . . . 1 . . . . 4 . . . . 36 . . . . 6 . . . . . Scan Component 35 | . 1 . 9 . . . . . . . 1 . . . . 2 . . . . 19 . . . . 3 . . . . . Repair 31 | . 1 . 8 . . . . . . . . . . . . 2 . . . . 17 . . . . 3 . . . . . Recycling Unit Hacks . | . . . . . . . . . . . . . . . . . . . . . . . . . . . . . . . . Scanalyzer 71 | . . . 16 . . . 6 . . . 3 . 8 . . 4 . . . . 22 . . . . 12 . . . . . Insert Component 36 | . . . 8 . . . 3 . . . 2 . 4 . . 2 . . . . 11 . . . . 6 . . . . . Analyze 35 | . . . 8 . . . 3 . . . 1 . 4 . . 2 . . . . 11 . . . . 6 . . . . . Garrison Access Hacks 8 | . . . . . . . 1 . 1 . 1 . . 1 . . . . . 1 1 . . . . 2 . . . . . Unlock Access 8 | . . . . . . . 1 . 1 . 1 . . 1 . . . . . 1 1 . . . . 2 . . . . . Unauthorized Hacks . | . . . . . . . . . . . . . . . . . . . . . . . . . . . . . . . . Terminals . | . . . . . . . . . . . . . . . . . . . . . . . . . . . . . . . . Fabricators . | . . . . . . . . . . . . . . . . . . . . . . . . . . . . . . . . Repair Stations . | . . . . . . . . . . . . . . . . . . . . . . . . . . . . . . . . Recycling Units . | . . . . . . . . . . . . . . . . . . . . . . . . . . . . . . . . Scanalyzers . | . . . . . . . . . . . . . . . . . . . . . . . . . . . . . . . . Garrison Access . | . . . . . . . . . . . . . . . . . . . . . . . . . . . . . . . . Data Cores Recovered 5 | . . . 1 . . . 2 . . . 1 . . . . . . . . 1 . . . . . . . . . . . Used 4 | . . . 1 . . . 1 . . . 1 . . . . . . . . 1 . . . . . . . . . . . Hacking Detections 117 | . 7 . 15 . . . 13 2 2 1 7 . 5 4 2 12 2 3 . 7 16 . . . . 16 . 3 . . . Full Trace Events 26 | . 1 . 10 . . . 3 . . 1 3 . . . . . . . . . 2 . . . . 6 . . . . . Feedback Events 2 | . . . . . . . 1 . . . 1 . . . . . . . . . . . . . . . . . . . . Corruption 2 | . . . . . . . 1 . . . 1 . . . . . . . . . . . . . . . . . . . . Feedback Blocked . | . . . . . . . . . . . . . . . . . . . . . . . . . . . . . . . . Robot Schematics Acquired 2 | . . . 1 . . . . . . . . . . . . . . . . 1 . . . . . . . . . . . Robots Built 9 | . . . . . . . . . . . . . . . . 1 . . . . 4 . . . . 4 . . . . . Authchips 1 | . . . . . . . . . . . . . . . . 1 . . . . . . . . . . . . . . . Time 452 | . . . . . . . . . . . . . . . . 40 . . . . 122 . . . . 290 . . . . . Total Robot Build Rating 34 | . . . . . . . . . . . . . . . . 1 . . . . 21 . . . . 12 . . . . . Part Schematics Acquired 34 | . . . 7 . . . 3 . . . 1 . 4 . . 1 . . . 1 8 . . 4 . 5 . . . . . Parts Built 3 | . . . . . . . . . . . . . . 2 . . . . . . . . . . . . . 1 . . . Authchips 1 | . . . . . . . . . . . . . . 1 . . . . . . . . . . . . . . . . . Time 307 | . . . . . . . . . . . . . . 73 . . . . . . . . . . . 106 . 128 . . . Total Part Build Rating 14 | . . . . . . . . . . . . . . 6 . . . . . . . . . . . . . 8 . . . Parts Repaired 31 | . 1 . 8 . . . . . . . . . . . . 2 . . . . 17 . . . . 3 . . . . . Time 1260 | . 26 . 319 . . . . . . . . . . . . 68 . . . . 763 . . . . 84 . . . . . Parts Recycled . | . . . . . . . . . . . . . . . . . . . . . . . . . . . . . . . . Recycled Matter . | . . . . . . . . . . . . . . . . . . . . . . . . . . . . . . . . Retrieved Matter . | . . . . . . . . . . . . . . . . . . . . . . . . . . . . . . . . Retrieved Components . | . . . . . . . . . . . . . . . . . . . . . . . . . . . . . . . . Parts Scanalyzed 30 | . . . 7 . . . 3 . . . 1 . 4 . . 2 . . . . 9 . . . . 4 . . . . . Part Schematics Acquired 29 | . . . 7 . . . 3 . . . 1 . 4 . . 1 . . . . 8 . . . . 5 . . . . . Parts Damaged 4 | . . . 1 . . . 1 . . . . . 1 . . 1 . . . . . . . . . . . . . . . Bothacking | -11 -10 -10 -9 -9 -9 -8 -8 -8 -8 -8 -8 -8 -8 -7 -7 -6 -6 -6 -6 -6 -5 -5 -5 -5 -4 -4 -4 -4 -4 -4 -3 ------------ Run | Yrd Mat Min Mat Min Exi Min Mat Gar Mat Gar Mat Gar Mat Fac Gar Fac Ext Cet Arc Hub Fac Upp Upp Zhi Pro Fac Gar Fac Upp War Pro Used RIF Installer . | . . . . . . . . . . . . . . . . . . . . . . . . . . . . . . . . Robots Hacked 2 | . . . . . . . . . . . . . . . . . . . . . . . . . . 2 . . . . . Non-combat 2 | . . . . . . . . . . . . . . . . . . . . . . . . . . 2 . . . . . Combat . | . . . . . . . . . . . . . . . . . . . . . . . . . . . . . . . . Robot Hacks Applied 4 | . . . . . . . . . . . . . . . . . . . . . . . . . . 4 . . . . . parse_system 1 | . . . . . . . . . . . . . . . . . . . . . . . . . . 1 . . . . . no_distress 1 | . . . . . . . . . . . . . . . . . . . . . . . . . . 1 . . . . . find_chute 1 | . . . . . . . . . . . . . . . . . . . . . . . . . . 1 . . . . . find_fabricator 1 | . . . . . . . . . . . . . . . . . . . . . . . . . . 1 . . . . . Relay Couplers Released 80 | . . . . . . . . 30 . 19 . 3 . . 20 . . . . 1 4 . . . . . 3 . . . . Machine Destruction 76 | . . . . . . . . 30 . 19 . 3 . . 20 . . . . 1 . . . . . . 3 . . . . Programmers 4 | . . . . . . . . . . . . . . . . . . . . . 4 . . . . . . . . . . Fabnet Peak Effective % . | . . . . . . . . . . . . . . . . . . . . . . . . . . . . . . . . Robots Rewired 43 | . . . . . . . . 17 . 2 . . . . . 2 15 . . . 1 . . . . . . . . 5 1 Allies Hacked 3 | . . . . . . . . . . . . . . . . . . . . . . . . . . 3 . . . . . Hacks Repelled . | . . . . . . . . . . . . . . . . . . . . . . . . . . . . . . . . Allies | -11 -10 -10 -9 -9 -9 -8 -8 -8 -8 -8 -8 -8 -8 -7 -7 -6 -6 -6 -6 -6 -5 -5 -5 -5 -4 -4 -4 -4 -4 -4 -3 -------- Run | Yrd Mat Min Mat Min Exi Min Mat Gar Mat Gar Mat Gar Mat Fac Gar Fac Ext Cet Arc Hub Fac Upp Upp Zhi Pro Fac Gar Fac Upp War Pro Total Allies 63 | . . . . . . . . 17 . 2 . . . . . 3 16 5 . . 5 . . . . 7 2 . . 5 1 Largest Group 12 | . . . . . . . . 12 8 6 . . . . . 3 11 6 6 3 3 . . . . 4 2 . . 5 1 Highest-Rated Group 616 | . . . . . . . . 198 135 94 . . . . . 68 429 616 613 288 90 . . . . 161 124 . . 265 47 Highest-Rated Ally 159 | . . . . . . . . 31 31 39 . . . . . 29 159 136 133 96 30 . . . . 46 62 . . 65 47 Warlord Squad Rendezvous 3 | . . . . . . . . . . . . . . . . . . . . . . . . . . 3 . . . . . Dakka 1 | . . . . . . . . . . . . . . . . . . . . . . . . . . 1 . . . . . Infantry 1 | . . . . . . . . . . . . . . . . . . . . . . . . . . 1 . . . . . Ranger 1 | . . . . . . . . . . . . . . . . . . . . . . . . . . 1 . . . . . Total Orders 47 | . . . . 3 . . . . . . . . . . . 9 . 5 2 . 5 . . . . 4 . 1 . 18 . STAY 21 | . . . . . . . . . . . . . . . . 7 . 3 1 . 2 . . . . 1 . . . 7 . FOLLOW 10 | . . . . . . . . . . . . . . . . 1 . 2 1 . 1 . . . . 2 . . . 3 . EXPLORE 14 | . . . . 3 . . . . . . . . . . . 1 . . . . 2 . . . . 1 . 1 . 6 . RETURN 2 | . . . . . . . . . . . . . . . . . . . . . . . . . . . . . . 2 . Ally Attacks 609 | . . . . 15 . . . 76 7 49 . . . . . 46 161 60 13 33 16 . . . . 40 24 . . 65 4 Total Damage 14933 | . . . . . . . . 1434 128 942 . . . . . 458 3528 2769 557 1126 376 . . . . 835 883 . . 1774 123 Kills 101 | . . . . . . . . 17 . 8 . . . . . 3 30 14 3 5 . . . . . 11 3 . . 7 . Allies Corrupted 3 | . . . . . . . . . . . . . . . . . . . . 2 . . . . . . . . . 1 . Allies Melted 6 | . . . 1 . . . . 1 . . . . . . . . . . . . 1 . . . . . . . . 3 . Intel | -11 -10 -10 -9 -9 -9 -8 -8 -8 -8 -8 -8 -8 -8 -7 -7 -6 -6 -6 -6 -6 -5 -5 -5 -5 -4 -4 -4 -4 -4 -4 -3 ------- Run | Yrd Mat Min Mat Min Exi Min Mat Gar Mat Gar Mat Gar Mat Fac Gar Fac Ext Cet Arc Hub Fac Upp Upp Zhi Pro Fac Gar Fac Upp War Pro Robot Analysis Total 16 | . 4 . 2 . . . 1 . . . . . . . . . . . . 1 4 . . 4 . . . . . . . Derelict Logs Recovered 8 | . . 1 . 2 . . . . . . . . . . . . . . . . . 2 2 . . . . . 1 . . Drone Launches 96 | . . . . 18 . . . . . . . . . . . 2 . . . . 3 . . . . 2 4 2 . 65 . Drone Recoveries 14 | . . . . 2 . . . . . . . . . . . . . . . . 1 . . . . 2 4 . . 5 . Exploration | -11 -10 -10 -9 -9 -9 -8 -8 -8 -8 -8 -8 -8 -8 -7 -7 -6 -6 -6 -6 -6 -5 -5 -5 -5 -4 -4 -4 -4 -4 -4 -3 ------------- Run | Yrd Mat Min Mat Min Exi Min Mat Gar Mat Gar Mat Gar Mat Fac Gar Fac Ext Cet Arc Hub Fac Upp Upp Zhi Pro Fac Gar Fac Upp War Pro Turns Passed 24870 | 143 691 1077 2232 330 101 379 818 1419 26 1063 566 532 641 662 1720 1532 1068 576 283 179 2655 627 533 80 142 1624 674 405 396 1247 449 Spaces Moved 26548 | 69 579 984 2537 478 264 601 1097 1414 56 1172 559 328 414 390 1817 2366 922 479 171 311 2512 624 837 137 253 1813 684 476 610 1125 469 Core 32 | 4 . . 1 . . . . 23 . . 2 . . . . 2 . . . . . . . . . . . . . . . Treads . | . . . . . . . . . . . . . . . . . . . . . . . . . . . . . . . . Legs 1270 | . . . . . . . . . . . 37 328 414 390 101 . . . . . . . . . . . . . . . . Wheels 1792 | 65 579 984 164 . . . . . . . . . . . . . . . . . . . . . . . . . . . . Hover 12742 | . . . . . . . . . . . . . . . . 1319 922 479 171 311 2512 624 837 137 253 1813 684 476 610 1125 469 Flight 10712 | . . . 2372 478 264 601 1097 1391 56 1172 520 . . . 1716 1045 . . . . . . . . . . . . . . . Fastest Speed 26 | 50 80 80 34 34 34 34 32 30 30 30 32 130 130 127 26 26 58 58 53 53 50 52 53 53 53 47 50 50 54 55 57 Average Speed 51 | 88 80 80 38 34 34 34 33 32 30 30 44 130 130 129 32 40 62 72 64 53 55 75 53 53 53 50 52 55 55 58 61 Slowest Speed 400 | 100 80 80 400 34 34 34 107 150 30 32 130 130 130 130 186 110 114 126 121 53 118 210 53 53 53 124 56 122 112 133 132 Overloaded Moves . | . . . . . . . . . . . . . . . . . . . . . . . . . . . . . . . . Propulsion Burnouts . | . . . . . . . . . . . . . . . . . . . . . . . . . . . . . . . . Robots Hopped 34 | . . . 1 . . 1 16 4 . . 1 . . . . 11 . . . . . . . . . . . . . . . Cave-ins Triggered . | . . . . . . . . . . . . . . . . . . . . . . . . . . . . . . . . Teleports 1 | . . . . . . . . . . . . . . . . . . . . . . . . . . . . . . 1 . Exploration Rate (%) 62 | 4 93 97 95 93 62 93 69 99 5 88 48 41 34 12 96 42 83 79 78 22 48 86 93 62 58 42 52 13 67 92 52 Regions Visited 31 Branch Regions 15 Pre-discovered Areas 7 | . . . . . 1 . . . . . . . . . . . . . . . . 1 2 3 . . . . . . . Known Exits Taken 10 | . 1 . 1 . . . 1 . 1 . 1 . 1 1 . . . . . . 1 . . . . 1 . 1 . . . Unknown Exits Taken 16 | 1 . 1 . 1 1 1 . . . . . . . . . 1 1 1 1 1 . 1 1 1 1 . . . 1 1 . Scrap Searched 10 | . . 1 . 1 . 1 . . . . . . . . . . . . . . . 2 2 . 1 . . . 1 . 1 Spaces Dug 26 | . . . . . . . . . . . . . . . . 2 . . . . 6 . . . . 13 . . . . 5 Terrain Destroyed 2546 | . 69 41 187 . . 43 . 181 . 58 158 122 13 . 73 183 214 222 7 160 240 14 43 . . 315 44 68 . 69 22 Melee . | . . . . . . . . . . . . . . . . . . . . . . . . . . . . . . . . Projectile 191 | . . . . . . . . . . . . . . . . 10 5 . 7 3 42 14 11 . . 69 1 . . 7 22 AOE 2355 | . 69 41 187 . . 43 . 181 . 58 158 122 13 . 73 173 209 222 . 157 198 . 32 . . 246 43 68 . 62 . Terrain Rammed . | . . . . . . . . . . . . . . . . . . . . . . . . . . . . . . . . Walls Destroyed . | . . . . . . . . . . . . . . . . . . . . . . . . . . . . . . . . Machines Disabled . | . . . . . . . . . . . . . . . . . . . . . . . . . . . . . . . . Actions | -11 -10 -10 -9 -9 -9 -8 -8 -8 -8 -8 -8 -8 -8 -7 -7 -6 -6 -6 -6 -6 -5 -5 -5 -5 -4 -4 -4 -4 -4 -4 -3 --------- Run | Yrd Mat Min Mat Min Exi Min Mat Gar Mat Gar Mat Gar Mat Fac Gar Fac Ext Cet Arc Hub Fac Upp Upp Zhi Pro Fac Gar Fac Upp War Pro Total 34536 | 120 694 1117 3222 629 280 672 1368 2215 64 1765 754 364 474 449 2716 2840 1357 676 285 318 3458 726 898 144 260 2335 939 577 641 1617 562 Wait 4112 | . 26 18 272 134 . 9 169 394 7 309 92 3 26 8 609 131 160 155 43 1 611 55 20 . 8 302 173 36 3 298 40 Move 26451 | 68 578 983 2534 477 263 598 1064 1405 55 1171 557 327 413 390 1815 2343 921 478 170 310 2511 623 836 136 252 1813 683 475 609 1124 469 Hop 34 | . . . 1 . . 1 16 4 . . 1 . . . . 11 . . . . . . . . . . . . . . . Pick Up 152 | 4 9 8 17 2 3 . 5 3 . 1 1 . 4 4 15 12 6 1 2 1 24 . 8 2 . 6 1 2 1 7 3 Fast Attach 334 | 11 2 3 19 2 . 6 9 17 . 20 15 1 . 4 17 49 9 7 14 . 38 4 1 2 . 21 14 14 4 26 5 Attach 82 | 1 1 4 3 1 2 . . 4 . 3 . . 1 1 2 3 1 4 . 1 8 . 3 1 . 15 4 2 3 10 4 Detach 96 | 6 . 2 3 2 2 . 1 3 . 3 2 . 1 . 2 10 2 2 7 . 10 1 3 1 . 12 2 3 3 13 . Swap 241 | . 5 11 50 1 2 5 7 15 1 4 8 4 5 1 31 24 12 3 2 1 23 1 2 . . 16 . 1 2 4 . Drop 412 | 2 7 9 37 2 8 4 15 24 1 17 21 . 6 3 48 54 17 4 8 1 47 1 9 2 . 21 . 10 3 31 . Fire 1842 | 28 66 79 286 8 . 49 82 86 . 61 57 29 18 38 141 171 79 22 39 3 153 34 16 . . 101 41 32 13 74 36 Melee 8 | . . . . . . . . . . . . . . . . . . . . . . . . . . 4 . . . . 4 Ram 3 | . . . . . . . . . . . . . . . . . . . . . 1 . . . . . . 2 . . . Kick . | . . . . . . . . . . . . . . . . . . . . . . . . . . . . . . . . Crush . | . . . . . . . . . . . . . . . . . . . . . . . . . . . . . . . . Escape Stasis 395 | . . . . . . . . 140 . 151 . . . . 36 16 . . . . 31 . . . . . 21 . . . . Rewire 335 | . . . . . . . . 120 . 25 . . . . . 16 150 . . . 1 . . . . 1 . . . 21 1 Trap 34 | . . . . . . . . . . . . . . . . . . . . . . 7 . . . 23 . . . 4 . Miscellaneous 5 | . . . . . . . . . . . . . . . . . . . . . . . . . . . . . . 5 . Route ------- -11/Scrapyard -10/Materials (discovered 4 exits: *Mat x3 / *Min) -10/Mines (discovered 3 exits: *Mat x2 / Sub) -9/Materials (discovered 5 exits: *Mat x3 / *Min / *Sto) -9/Mines (discovered 3 exits: *Mat x2 / *Exi) -9/Exiles -8/Mines (discovered 2 exits: *Mat x2) -8/Materials (discovered 4 exits: *Fac x3 / Gar) -8/Garrison (discovered 4 exits: *Fac x3 / *Mat) -8/Materials -8/Garrison (discovered 3 exits: *Mat x3) -8/Materials (discovered 2 exits: *Fac / Gar) -8/Garrison -8/Materials -7/Factory (discovered 2 exits: *Fac / Gar) -7/Garrison (discovered 3 exits: *Fac x3) -6/Factory -6/Extension (discovered 2 exits: *Fac / *Cet) -6/Cetus (discovered 2 exits: *Fac / *Arc) -6/Archives (discovered 2 exits: *Hub x2) -6/Hub_04(d) -5/Factory (discovered 4 exits: *Fac / *Upp x2 / Gar) -5/Upper Caves -5/Upper Caves (discovered 2 exits: *Fac / *Zhi) -5/Zhirov -4/Proximity Caves -4/Factory (discovered 6 exits: [*Res x2] / *Upp x2 / Gar / Gar) -4/Garrison (discovered 2 exits: *Fac x2) -4/Factory -4/Upper Caves (discovered 2 exits: [*Upp] / *War) -4/Warlord -3/Proximity Caves History --------- Turn | Location | Event 7 | -11/Scrapyard | Discovered new exit (range 15) 144 | -11/Scrapyard | Entered Materials 202 | -10/Materials | Discovered new exit (range 16) 215 | -10/Materials | Central database locked down 215 | -10/Materials | Identified exit to Mines 323 | -10/Materials | Discovered new exit (range 10) 453 | -10/Materials | Build established: Mutant 590 | -10/Materials | Repaired Assault Rifle 633 | -10/Materials | Discovered new exit (range 16) 835 | -10/Materials | Entered Mines 860 | -10/Mines | Met a Derelict bent on vengeance 950 | -10/Mines | Found the Drone Emporium 953 | -10/Mines | Found Prototype Device 1113 | -10/Mines | Discovered new exit (range 7) 1291 | -10/Mines | Core integrity fell below 50% 1558 | -10/Mines | Discovered new exit (range 15) 1579 | -10/Mines | Identified exit to Subcaves 1595 | -10/Mines | Met a Derelict who couldn't figure out how to use a Trap Extractor 1912 | -10/Mines | Entered Materials 1912 | -9/Materials | Evolved 2 slots: Propulsion x1, Utility x1 2072 | -9/Materials | Identified exit to Mines 2072 | -9/Materials | Identified exit to Storage 2092 | -9/Materials | Identified Bomb Drone Bay 2381 | -9/Materials | Build established: Hacker-Mutant 2411 | -9/Materials | Repaired Hvy. Assault Rifle 2414 | -9/Materials | Repaired Broken Hvy. Assault Rifle? 2527 | -9/Materials | Discovered new exit (range 3) 2713 | -9/Materials | Repaired Hvy. Assault Rifle 2739 | -9/Materials | Repaired Imp. Flight Unit 2765 | -9/Materials | Repaired Imp. Flight Unit 2799 | -9/Materials | Repaired Hvy. Assault Rifle 2851 | -9/Materials | Repaired Imp. Flight Unit 2878 | -9/Materials | Repaired Grenade Launcher 3058 | -9/Materials | Discovered new exit (range 3) 3241 | -9/Materials | Discovered new exit (range 7) 3512 | -9/Materials | First assault squad dispatched 3842 | -9/Materials | Build established: Scavenger-Mutant 3863 | -9/Materials | Core integrity fell below 50% 3979 | -9/Materials | Sterilization system engaged 3979 | -9/Materials | Non-combat units ordered to evacuate 4017 | -9/Materials | Destroyed 7 combat bots 4079 | -9/Materials | Combat units ordered to evacuate 4144 | -9/Materials | Entered Mines 4159 | -9/Mines | Learned 2 Materials zone layouts 4186 | -9/Mines | Assembled infested the area 4301 | -9/Mines | Discovered new exit (range 63) 4325 | -9/Mines | Discovered new exit (range 80) 4329 | -9/Mines | Lost 6 allies 4377 | -9/Mines | Deemed a non-threat by the Exiles lab entrance 4377 | -9/Mines | Discovered new exit (range 5) 4399 | -9/Mines | Found a hidden stash of uninstalled traps 4411 | -9/Mines | Received a Rocket Launcher from a helpful Derelict 4474 | -9/Mines | Entered Exiles 4483 | -9/Exiles | Met 8R-AWN 4491 | -9/Exiles | Met EX-HEX 4500 | -9/Exiles | Met EX-BIN 4504 | -9/Exiles | Aligned with FarCom system 4505 | -9/Exiles | Given EX-Vault access code 4520 | -9/Exiles | Opened EX-Vault 4526 | -9/Exiles | Found XL Autogun Array 4543 | -9/Exiles | Warned to stay clear of 0b10 Research branches 4552 | -9/Exiles | Met EX-DEC 4554 | -9/Exiles | Learned location of Zion (-7) 4572 | -9/Exiles | Discovered new exit (range 10) 4575 | -9/Exiles | Left Exiles lab with XL Autogun Array 4575 | -9/Exiles | Entered Mines 4605 | -8/Mines | Build established: Mutant 4939 | -8/Mines | Discovered new exit (range 6) 4942 | -8/Mines | Discovered new exit (range 16) 4954 | -8/Mines | Entered Materials 4954 | -8/Materials | Evolved 2 slots: Weapon x2 4955 | -8/Materials | Identified exit to Factory 5169 | -8/Materials | Discovered exit to Factory (range 15) 5260 | -8/Materials | Build established: Skirmisher 5370 | -8/Materials | Discovered exit to Factory (range 15) 5771 | -8/Materials | Identified exit to Garrison 5772 | -8/Materials | Entered Garrison 5778 | -8/Garrison | Triggered checkpoint 5809 | -8/Garrison | Discovered new exit (range 5) 5856 | -8/Garrison | Triggered checkpoint 5879 | -8/Garrison | Garrison Relay disabled 6034 | -8/Garrison | Lost 3 allies 6072 | -8/Garrison | Triggered checkpoint 6090 | -8/Garrison | Triggered checkpoint 6132 | -8/Garrison | Garrison Relay disabled 6153 | -8/Garrison | Phase Generator disabled 6167 | -8/Garrison | Garrison Relay disabled 6171 | -8/Garrison | Discovered exit to Factory (range 14) 6184 | -8/Garrison | Learned Factory security intel 6353 | -8/Garrison | Triggered checkpoint 6445 | -8/Garrison | Discovered exit to Factory (range 10) 6459 | -8/Garrison | Garrison Relay disabled 6459 | -8/Garrison | Triggered checkpoint 6508 | -8/Garrison | Triggered checkpoint 6509 | -8/Garrison | Garrison Relay disabled 6788 | -8/Garrison | Spotted B-75 Beast 6788 | -8/Garrison | Garrison Relay disabled 6829 | -8/Garrison | Allies destroyed B-75 Beast 6856 | -8/Garrison | Triggered checkpoint 6912 | -8/Garrison | Discovered exit to Factory (range 10) 6924 | -8/Garrison | Triggered checkpoint 6964 | -8/Garrison | Lost 3 allies 6995 | -8/Garrison | Build established: Commander-Sprinter 7003 | -8/Garrison | Garrison Relay disabled 7191 | -8/Garrison | Entered Materials 7191 | -8/Materials | Accompanied by 8 allies 7216 | -8/Materials | Identified exit to Garrison 7217 | -8/Materials | Entered Garrison 7217 | -8/Garrison | Accompanied by 6 allies 7224 | -8/Garrison | Learned Materials security intel 7265 | -8/Garrison | Garrison Relay disabled 7302 | -8/Garrison | Triggered checkpoint 7327 | -8/Garrison | Discovered new exit (range 9) 7409 | -8/Garrison | Lost 6 allies 7458 | -8/Garrison | Triggered checkpoint 7487 | -8/Garrison | Garrison Relay disabled 7501 | -8/Garrison | Garrison Relay disabled 7572 | -8/Garrison | Triggered checkpoint 7679 | -8/Garrison | Lost 3 parts (3w) 7681 | -8/Garrison | Core integrity fell below 50% 7704 | -8/Garrison | Triggered checkpoint 7714 | -8/Garrison | Build established: Scavenger-Sprinter 7777 | -8/Garrison | Discovered new exit (range 15) 7792 | -8/Garrison | Triggered checkpoint 7841 | -8/Garrison | Garrison Relay disabled 7939 | -8/Garrison | Garrison Relay disabled 7944 | -8/Garrison | Triggered checkpoint 7948 | -8/Garrison | Discovered new exit (range 15) 8280 | -8/Garrison | Entered Materials 8476 | -8/Materials | Discovered exit to Factory (range 5) 8605 | -8/Materials | Garrison activated, responded to threat 8846 | -8/Materials | Identified exit to Garrison 8846 | -8/Materials | Entered Garrison 8924 | -8/Garrison | Triggered checkpoint 8936 | -8/Garrison | Build established: Skirmisher 8973 | -8/Garrison | Core integrity fell below 20% 8989 | -8/Garrison | Garrison Relay disabled 9050 | -8/Garrison | Triggered checkpoint 9068 | -8/Garrison | Triggered checkpoint 9347 | -8/Garrison | Discovered new exit (range 13) 9378 | -8/Garrison | Entered Materials 9568 | -8/Materials | Discovered exit to Factory (range 12) 10019 | -8/Materials | Entered Factory 10019 | -7/Factory | Evolved 2 slots: Propulsion x1, Utility x1 10223 | -7/Factory | Discovered new exit (range 10) 10551 | -7/Factory | Fabricated Adv. Weight Redist. System? 10622 | -7/Factory | Garrison activated, responded to threat 10681 | -7/Factory | Identified exit to Garrison 10681 | -7/Factory | Entered Garrison 10722 | -7/Garrison | Triggered checkpoint 10785 | -7/Garrison | Garrison Relay disabled 11005 | -7/Garrison | Destroyed 8 combat bots 11083 | -7/Garrison | Triggered checkpoint 11171 | -7/Garrison | Discovered new exit (range 12) 11180 | -7/Garrison | Triggered checkpoint 11276 | -7/Garrison | Triggered checkpoint 11292 | -7/Garrison | Build established: Scavenger-Sprinter 11318 | -7/Garrison | Discovered new exit (range 9) 11500 | -7/Garrison | Triggered checkpoint 11543 | -7/Garrison | Garrison Relay disabled 11627 | -7/Garrison | Core integrity fell below 50% 11854 | -7/Garrison | Triggered checkpoint 11932 | -7/Garrison | Phase Generator disabled 11934 | -7/Garrison | Discovered new exit (range 11) 11966 | -7/Garrison | Triggered checkpoint 11969 | -7/Garrison | Garrison Relay disabled 12215 | -7/Garrison | Garrison Relay disabled 12218 | -7/Garrison | Discovered new exit (range 20) 12218 | -7/Garrison | Discovered new exit (range 42) 12218 | -7/Garrison | Discovered new exit (range 67) 12221 | -7/Garrison | Garrison Relay disabled 12328 | -7/Garrison | Attempted to access garrison exit controls, blocked by remote lockdown 12401 | -7/Garrison | Entered Factory 12401 | -6/Factory | Evolved 2 slots: Power x1, Propulsion x1 12503 | -6/Factory | Fabricated O-16 Technician (x1) 12616 | -6/Factory | Lost 3 parts (1n2w) 12751 | -6/Factory | First assault squad dispatched 12805 | -6/Factory | Lost 3 allies 13132 | -6/Factory | Cargo convoy interrupted 13224 | -6/Factory | Repaired Broken Impulse Thruster? 13283 | -6/Factory | Spotted B-75 Beast 13333 | -6/Factory | Discovered new exit (range 6) 13393 | -6/Factory | Build established: Scavenger-Skirmisher 13628 | -6/Factory | Destroyed 7 combat bots 13811 | -6/Factory | Build established: Hacker-Skirmisher 13843 | -6/Factory | Repaired Lrn. Missile Launcher 13933 | -6/Factory | Entered Extension 13958 | -6/Extension | Rescued A7 14290 | -6/Extension | Spotted B-75 Beast 14301 | -6/Extension | Allies destroyed B-75 Beast 14333 | -6/Extension | Spotted B-75 Beast 14350 | -6/Extension | Destroyed B-75 Beast 14533 | -6/Extension | Disrupted transfer network 14633 | -6/Extension | First assault squad dispatched 14666 | -6/Extension | Discovered new exit (range 16) 14666 | -6/Extension | Discovered new exit (range 16) 14672 | -6/Extension | Destroyed 10 combat bots 14817 | -6/Extension | High security lockdown imminent 14897 | -6/Extension | High security lockdown engaged 14968 | -6/Extension | Lost 10 allies 14995 | -6/Extension | Destroyed 18 combat bots 15001 | -6/Extension | Entered Cetus 15001 | -6/Cetus | Accompanied by 1 ally (A7) 15006 | -6/Cetus | Acquired a Cetus Manufacturing Module code from A7 15011 | -6/Cetus | Spotted Cetus Guard 15011 | -6/Cetus | Spotted Cetus Guard 15014 | -6/Cetus | Spotted Cetus Guard 15019 | -6/Cetus | Spotted Cetus Guard 15021 | -6/Cetus | Allies destroyed Cetus Guard 15024 | -6/Cetus | Allies destroyed Cetus Guard 15024 | -6/Cetus | Destroyed Cetus Guard 15027 | -6/Cetus | Allies destroyed Cetus Guard 15062 | -6/Cetus | Started Cetus Manufacturing Module 15073 | -6/Cetus | Escorted A7 to Cetus Mainframe 15087 | -6/Cetus | Manufactured an Enhanced Grunt 15112 | -6/Cetus | Manufactured an Enhanced Grunt 15137 | -6/Cetus | Manufactured an Enhanced Grunt 15162 | -6/Cetus | Manufactured an Enhanced Grunt 15187 | -6/Cetus | Manufactured an Enhanced Grunt 15262 | -6/Cetus | Discovered new exit (range 15) 15428 | -6/Cetus | Spotted Cetus Guard 15429 | -6/Cetus | Spotted Cetus Guard 15442 | -6/Cetus | Spotted Cetus Guard 15442 | -6/Cetus | Spotted Cetus Guard 15447 | -6/Cetus | Allies destroyed Cetus Guard 15449 | -6/Cetus | Discovered new exit (range 16) 15455 | -6/Cetus | Allies destroyed Cetus Guard 15456 | -6/Cetus | Allies destroyed Cetus Guard 15458 | -6/Cetus | Allies destroyed Cetus Guard 15461 | -6/Cetus | Met Revision 17 15479 | -6/Cetus | Lost 5 parts (1p2u2w) 15577 | -6/Cetus | Entered Archives 15577 | -6/Archives | Accompanied by 6 allies (A7) 15582 | -6/Archives | Received a hacking code to weaken MAIN.C 15602 | -6/Archives | Found Prototype Device 15602 | -6/Archives | Identified Exp. Thermal Shield 15755 | -6/Archives | Discovered new exit (range 16) 15778 | -6/Archives | Discovered new exit (range 16) 15779 | -6/Archives | Build established: Scavenger-Skirmisher 15837 | -6/Archives | Unable to access archive contents 15860 | -6/Archives | Entered Hub_04(d) 15860 | -6/Hub_04(d) | Accompanied by 3 allies 15916 | -6/Hub_04(d) | Identified exit to Garrison 15918 | -6/Hub_04(d) | Discovered new exit (range 11) 16004 | -6/Hub_04(d) | Network Hub disabled 16039 | -6/Hub_04(d) | Entered Factory 16039 | -5/Factory | Evolved 2 slots: Propulsion x1, Utility x1 16051 | -5/Factory | Lost 3 allies 16254 | -5/Factory | Repaired Gravmag Array 16281 | -5/Factory | Repaired Cmb. Airjet 16304 | -5/Factory | Repaired Imp. Cooling System 16343 | -5/Factory | Repaired Adv. Phase Shifter 16528 | -5/Factory | Repaired Gauss Rifle 16570 | -5/Factory | Repaired Prc. Rocket Launcher 16590 | -5/Factory | Identified exit to Upper Caves 16627 | -5/Factory | Repaired Broken Neutron Cannon 16641 | -5/Factory | Identified exit to Garrison 16668 | -5/Factory | Repaired Broken Wave Gun? 16697 | -5/Factory | Repaired Coil Gun 16871 | -5/Factory | Build established: Hacker-Skirmisher 17286 | -5/Factory | Destroyed 11 combat bots 17291 | -5/Factory | Discovered new exit (range 10) 17360 | -5/Factory | Spotted B-75 Beast 17374 | -5/Factory | Repaired Coil Gun? 17540 | -5/Factory | Repaired Imp. Antigrav System? 17638 | -5/Factory | Repaired Enh. Gauss Cannon 17700 | -5/Factory | Repaired Adv. Cooling System? 17791 | -5/Factory | Repaired Prc. Rocket Launcher? 17839 | -5/Factory | First assault squad dispatched 17846 | -5/Factory | Repaired Gravmag Array? 18024 | -5/Factory | Repaired Hyp. Gauss Cannon? 18091 | -5/Factory | Repaired Imp. Antigrav System? 18220 | -5/Factory | Fabricated O-24 Administrator? 18224 | -5/Factory | System corruption reached 10% 18521 | -5/Factory | Fabricated B-60 Warrior? 18601 | -5/Factory | Lost 4 allies 18644 | -5/Factory | High security lockdown imminent 18666 | -5/Factory | Central database locked down 18694 | -5/Factory | Entered Upper Caves 18701 | -5/Upper Caves | Met a Warlord Commander 18702 | -5/Upper Caves | Learned location of Warlord (-4) 18703 | -5/Upper Caves | Warlord Commander delivered Encrypted Comm Array 18707 | -5/Upper Caves | Found Encrypted Comm Array 18810 | -5/Upper Caves | Attracted the attention of an 0b10 checkpoint 18853 | -5/Upper Caves | Learned Factory stockpile data 18857 | -5/Upper Caves | Learned Factory stockpile data 19014 | -5/Upper Caves | Build established: Gunner 19052 | -5/Upper Caves | Spotted B-75 Beast 19209 | -5/Upper Caves | Discovered new exit (range 8) 19320 | -5/Upper Caves | Build established: Scavenger-Gunner 19321 | -5/Upper Caves | Entered another Upper Caves area 19387 | -5/Upper Caves | Discovered new exit (range 12) 19764 | -5/Upper Caves | Learned location of Armory (-3) 19776 | -5/Upper Caves | Discovered new exit (range 10) 19854 | -5/Upper Caves | Entered Zhirov 19854 | -5/Zhirov | Discovered new exit (range 3) 19864 | -5/Zhirov | Met Zhirov 19876 | -5/Zhirov | Found Alien Artifact 19876 | -5/Zhirov | Identified Integrated Reactor 19876 | -5/Zhirov | Installed Integrated Reactor, increased core energy generation (+10) 19898 | -5/Zhirov | Found Alien Artifact 19910 | -5/Zhirov | Learned location of Quarantine (-2) 19910 | -5/Zhirov | Learned location of Testing (-3) 19910 | -5/Zhirov | Learned location of Command (-1) 19920 | -5/Zhirov | Zhirov requested help retrieving the SGEMP Prototype 19934 | -5/Zhirov | Entered Proximity Caves 20029 | -4/Proximity Caves | Spotted B-86 Titan 20063 | -4/Proximity Caves | Discovered new exit (range 11) 20076 | -4/Proximity Caves | Entered Factory 20076 | -4/Factory | Evolved 2 slots: Utility x2 20101 | -4/Factory | Identified exit to Garrison 20146 | -4/Factory | Identified exit to Upper Caves 20170 | -4/Factory | Joined by Warlord Ranger squad 20280 | -4/Factory | Fabricated O-24 Administrator? 20416 | -4/Factory | Build established: Hacker-Mutant 20429 | -4/Factory | Fabricated O-24 Administrator? 20532 | -4/Factory | Discovered new exit (range 12) 20542 | -4/Factory | Joined by Warlord Dakka squad 20743 | -4/Factory | Identified Transdimensional Reconstructor 20826 | -4/Factory | First assault squad dispatched 20902 | -4/Factory | Lost 4 allies 20954 | -4/Factory | Discovered new exit (range 5) 21032 | -4/Factory | Fabricated O-24 Administrator (x1) 21249 | -4/Factory | Joined by Warlord Infantry squad 21256 | -4/Factory | Allied Derelicts emerged from ambush trap array 21279 | -4/Factory | Fabricated O-24 Administrator? 21550 | -4/Factory | Repaired Lyr. Heavy Armor Plating 21583 | -4/Factory | Repaired Imp. Linear Gravjet 21609 | -4/Factory | Repaired Cmb. Airjet 21689 | -4/Factory | Lost 3 allies 21693 | -4/Factory | Lost 5 parts (1p1n2u1w) 21700 | -4/Factory | Identified exit to Garrison 21700 | -4/Factory | Entered Garrison 21705 | -4/Garrison | Destroyed 9 combat bots 21718 | -4/Garrison | Triggered checkpoint 21728 | -4/Garrison | Garrison Relay disabled 21806 | -4/Garrison | Spotted B-86 Titan 21938 | -4/Garrison | Lost 4 parts (1p2u1w) 22050 | -4/Garrison | Triggered checkpoint 22056 | -4/Garrison | Triggered checkpoint 22068 | -4/Garrison | Found embedded Infiltrators 22085 | -4/Garrison | Lost 5 parts (1p2u2w) 22144 | -4/Garrison | Core integrity fell below 50% 22150 | -4/Garrison | Destroyed B-86 Titan 22240 | -4/Garrison | Discovered new exit (range 13) 22369 | -4/Garrison | Discovered new exit (range 10) 22374 | -4/Garrison | Entered Factory 22376 | -4/Factory | Build established: Scavenger-Skirmisher 22558 | -4/Factory | Garrison activated, responded to threat 22618 | -4/Factory | Fabricated Com. HERF Cannon? 22649 | -4/Factory | Discovered exit to Upper Caves (range 15) 22672 | -4/Factory | First assault squad dispatched 22779 | -4/Factory | Entered Upper Caves 22825 | -4/Upper Caves | Lost 4 parts (1p2n1w) 22829 | -4/Upper Caves | Learned Research machine intel 22894 | -4/Upper Caves | A Derelict revealed a hidden shortcut to "reach the base" 22951 | -4/Upper Caves | Discovered new exit (range 16) 22976 | -4/Upper Caves | Build established: Scavenger-Gunner 23126 | -4/Upper Caves | Spotted B-86 Titan 23175 | -4/Upper Caves | Entered Warlord 23194 | -4/Warlord | System corruption cleaned by Quarantine Array 23274 | -4/Warlord | Found Prototype Special Weapon 23274 | -4/Warlord | Identified RU-N14's Throwing Claymores v3 23277 | -4/Warlord | Found RU-N14's Throwing Claymores v3 23284 | -4/Warlord | Found RU-N14's Throwing Claymores v3 23286 | -4/Warlord | Found RU-N14's Throwing Claymores v3 23369 | -4/Warlord | Found Prototype Device 23369 | -4/Warlord | Identified Minesniffer Drone Bay 23423 | -4/Warlord | Received a Watcher feed algorithm from an ecstatic Tinkerer 23465 | -4/Warlord | Discovered new exit (range 70) 23479 | -4/Warlord | Warlord's base attacked by MAIN.C 23483 | -4/Warlord | Met Warlord 23599 | -4/Warlord | Lost 10 allies 23699 | -4/Warlord | Warlord forces counterattacked 23717 | -4/Warlord | Spotted B-90 Cyclops 23777 | -4/Warlord | Lost 6 allies 23802 | -4/Warlord | Spotted Executioner 23815 | -4/Warlord | Spotted Striker 23823 | -4/Warlord | Destroyed Striker 23877 | -4/Warlord | Lost 10 allies 23894 | -4/Warlord | Spotted Striker 23894 | -4/Warlord | Spotted Executioner 23969 | -4/Warlord | Allies destroyed Executioner 23992 | -4/Warlord | Spotted Striker 24014 | -4/Warlord | Allies destroyed Striker 24034 | -4/Warlord | Lost 32 allies 24124 | -4/Warlord | Spotted B-90 Cyclops 24131 | -4/Warlord | Spotted Striker 24154 | -4/Warlord | Warlord base infiltrated, sounded retreat 24154 | -4/Warlord | Found Prototype Ballistic Cannon 24154 | -4/Warlord | Identified Hvy. Autocannon 24159 | -4/Warlord | Lost 7 allies 24167 | -4/Warlord | P-80 Master assimilated allied Sentinel 7a 24197 | -4/Warlord | Spotted Executioner 24261 | -4/Warlord | Lost 5 allies 24264 | -4/Warlord | Spotted Executioner 24299 | -4/Warlord | Spotted Executioner 24304 | -4/Warlord | Found Hvy. Autocannon 24314 | -4/Warlord | Spotted B-90 Cyclops 24318 | -4/Warlord | Spotted B-86 Titan 24324 | -4/Warlord | Warped through subspace 24325 | -4/Warlord | Core integrity fell below 20% 24337 | -4/Warlord | Destroyed Executioner 24355 | -4/Warlord | Lost 19 allies 24359 | -4/Warlord | Spotted Striker 24359 | -4/Warlord | Spotted Executioner 24399 | -4/Warlord | Spotted Executioner 24404 | -4/Warlord | Lost 4 allies 24422 | -4/Warlord | Entered Proximity Caves 24426 | -3/Proximity Caves | Spotted B-86 Titan 24441 | -3/Proximity Caves | Lost 3 allies 24754 | -3/Proximity Caves | Attracted the attention of an 0b10 outpost 24871 | -3/Proximity Caves | Destroyed by Y-72 Warden with Railgun Last Messages --------------- 24816_ G-67 Veteran unfolds itself. 24816_ B-74 Champion unfolds itself. 24816_ E-15 Imp unfolds itself. 24816_ Helical Railgun blown off. 24816_ E-15 Imp destroyed. 24821_ Cesium-ion Thruster fries itself beyond repair. 24821_ Lyr. Heavy Armor Plating destroyed. 24824_ Adv. Heat Sink destroyed. 24827_ Lgt. Nuclear Core destroyed. 24830_ G-73 Enforcer suffers critical hit (Burn). 24830_ Myomer Leg melted. 24830_ G-73 Enforcer destroyed. 24837_ Plasma Rifle destroyed. 24838_ System corrupted: Matter fused (-9). 24849_ Critical hit (Burn: +50). 24851_ Cmb. Gravmag System destroyed. 24851_ Acquired Helical Railgun. 24852_ Critical hit (Burn: +37). 24852_ Acquired 9 matter. 24871_ Lgt. Nuclear Core destroyed. Map ----- +----------------------------------------------------+ | #????????????????????????????????????????????????? | | ?????????????????????????????????????????????????? | | ?????????????????????????????????????????????????? | | ?????????????????????????????????????????????????? | | #????????????????????????????????????????????????? | | ##???????????????????????????????????????????????? | | ###?????????????????????????????????????????????? | | #?????????????????????????????????????????????? | | #?????????????????????????????????????????????? | | ##?????????????????????????????????????????????? | | ###??##??????????????????????????????????????????? | | ????? #??????????????????????????????????????????? | | ???? #??????????????????????????????????????????? | | ???? #??????????????????????????????????????????? | | ???? ##?????????????????????????????????????????? | | ??? #?????????????????????????????????????????? | | ??? #???##????????????????????????????????????? | | ??? #???## #???????????????????????????????????? | | ??# #????# ##?????????????????????????????????? | | ## #????## #?????????????????????????????????? | | #????# ##????????????????????????????????? | | ####???? #####???????????? #??????????????? | | ### #??????# ###???????? ##?????????????? | | # ## ##?##### #?????? ##????????????? | | # # ### ## ###### #????????????? | | # @ #???????????? | | # #???????????? | | # ##### ### ## ##???????????? | | # ###???# #????#?????????????????? | | # ##?????# #??????????????????????? | | # ## ##?????? ??????????????????????? | | ## ##??????? ??????????????????????? | | #### #???????? ?????????????????????? | | #???## ## ??????? ?????????????????????? | | #?????# ## ?????? ?????????????????????? | | ??????# ## ####????? ????????????????????? | | ?????? ## ##???????? ????????????????????? | | ?????# ## #????????? Y ????????????????????? | | ?????## ### #????????? #???????????????????? | | ??????####? ????????? ? ????????????????????? | | ???????????? ?????????? ??????????????????????? | | ?????????????????????????????????????????????????? | | ?????????????????????????????????????????????????? | | ?????????????????????????????????????????????????? | | ?????????????????????????????????????????????????? | | ?????????????????????????????????????????????????? | | ?????????????????????????????????????????????????? | | ?????????????????????????????????????????????????? | | ?????????????????????????????????????????????????? | | ?????????????????????????????????????????????????? | +----------------------------------------------------+ Best States ------------- Heat Dissipation 108 Coolant Potential 50 Energy Generation 51 Energy Capacity 530 Matter Stores 500 Matter Capacity 500 Sight Range 16 Terrain Scan Range 16 Terrain Scan Density 10 Power Amplification 30 Additional Mass Support 12 Armor Coverage 600 Resistance: KI 30 Resistance: TH 10 Phase Shifting 15 Evasion (%) 69 Targeting Accuracy 18 Melee Accuracy 8 Launcher Accuracy 30 Target Analysis 9 Core Analysis 6 Recoil Reduction 4 Matter Filtering 30 Particle Charging 20 Kinecelleration 40 Offensive Hacking 42 Defensive Hacking 24 Authchip Count 3 Item Schematics ----------------- Hvy. Assault Rifle | -9/Materials | Scanalyzed Assault Rifle | -9/Materials | Scanalyzed Imp. Ion Engine | -9/Materials | Scanalyzed Lrg. Matter Pod | -9/Materials | Scanalyzed Grenade Launcher | -9/Materials | Scanalyzed Imp. Assault Rifle | -9/Materials | Scanalyzed Imp. Flight Unit | -9/Materials | Scanalyzed Mic. Nuclear Core | -8/Materials | Scanalyzed Hacking Suite | -8/Materials | Scanalyzed Missile Launcher | -8/Materials | Scanalyzed Prc. Beam Rifle | -8/Materials | Scanalyzed Hvy. Missile Launcher | -8/Materials | Scanalyzed Adv. Weight Redist. System | -8/Materials | Scanalyzed Recoil Stabilizer | -8/Materials | Scanalyzed Com. Matter Pod | -8/Materials | Scanalyzed Impulse Thruster | -6/Factory | Scanalyzed Cld. Gravmag System | -6/Hub_04(d) | Hacked Cmb. Airjet | -5/Factory | Scanalyzed Gravmag Array | -5/Factory | Scanalyzed Lgt. Neutrino Core | -5/Factory | Scanalyzed Adv. Phase Shifter | -5/Factory | Scanalyzed Exp. Thermal Shield | -5/Factory | Scanalyzed Enh. Gauss Cannon | -5/Factory | Scanalyzed Imp. Target Analyzer | -5/Factory | Scanalyzed Hyp. Gauss Cannon | -5/Factory | Scanalyzed Assault Drone Bay | -5/Zhirov | Free Exp. Optical Array | -5/Zhirov | Free Exp. Heat Sink | -5/Zhirov | Free Imp. Arc Thrower | -5/Zhirov | Free Prc. Rocket Launcher | -4/Factory | Scanalyzed Matter Compressor | -4/Factory | Scanalyzed Cmb. Gravmag System | -4/Factory | Scanalyzed Imp. Kinecellerator | -4/Factory | Scanalyzed Adv. Cooling System | -4/Factory | Scanalyzed Robot Schematics ------------------ O-16 Technician | -9/Materials | Hacked O-24 Administrator | -6/Hub_04(d) | Hacked Fabricated ------------ Adv. Weight Redist. System | x2 | -7/Factory | Authchip O-16 Technician | x1 | -6/Factory | Authchip O-24 Administrator | x1 | -5/Factory B-60 Warrior | x3 | -5/Factory | Preloaded O-24 Administrator | x1 | -4/Factory O-24 Administrator | x1 | -4/Factory O-24 Administrator | x1 | -4/Factory O-24 Administrator | x1 | -4/Factory Com. HERF Cannon | x1 | -4/Factory | Preloaded Alien Tech Used ----------------- Integrated Reactor Transdimensional Reconstructor Achievements -------------- None Challenges ------------ None Game ------ Seed HypervelocityScrapGuard Manual? 0 Play Time 06:57:27 Cumulative 310.6 hours Start 2024.05.10 @ 14:15:25 End 2024.05.11 @ 02:44:24 Sessions 3 Manual Loads 0 Difficulty Rogue Special Mode None Game No. 122 Rogue 122 Adventurer 0 Explorer 0 Win Type - Total 1 Types 0/0/1/0/0/0/0/0/0 Lore% 66 Gallery% 74 Achievement% 59 Wizard Run 0 Options --------- Layout 0 ASCII 0 Keyboard 1 Movement Arrows Keybinds 0 Fullscreen 1 Font 12/Proggy Map View 83x54 Zoom Use 0% Tactical HUD 1 Map Filters NONE Filters NONE Steam 0 RUN: 4516794b-f584-47c8-84d5-1159664fbb70